Workbook

Sheet Лизинг vs. Кредит
C1: Калькулятор приобретения имущества в кредит и по договору лизинга для организации
E2: © www.calculator24.ru
C3: Исходные данные (заполнить информацию): | H3: Налоговые условия у компании:
A4: Общая | C4: Стоимость имущества с НДС | F4: 5000000 | G4: Внесите в желтые ячейки свои данные. Расчет обновляется онлайн. | H4: Общая | I4: система налогообложения
A5: Упрощенная | B5: 0.15 | C5: Сопутствующие расходы с НДС | F5: 100000 | H5: Налог на прибыль: | J5: 0.2
C6: Срок кредита или лизинга, мес. | F6: 36 | H6: Ставка НДС: | J6: 0.18
C7: % собственных средств в сделке | F7: 0.2 | H7: Ставка УСН: | J7: 0.15
A8: аннуитет | C8: Схема погашения задолженности | F8: дифференц. | H8: Налог на имущество | J8: 0.022
A9: дифференц. | C9: Срок амортизации имущ-ва, мес. | F9: 48 | H9: Транспортный налог | J9: 0
C10: Итоги сравнения двух схем приобретения:
C11: ИТОГИ расчета: | G11: Кредит | I11: Лизинг
C12: Общий отток денежных средств: | G12: =E17+F139+G139+I139 -> 6511034.605 | I12: =$E$141+$D$263 -> 6518333.333
C13: Экономия по налогу на прибыль | G13: =-J139 -> -917800.1412 | I13: =-$J$263 -> -1283666.667
C14: НДС к возмещению | G14: =-SUM(F4:F5)/(1+J6)*J6 -> -777966.1017 | I14: =-$I$263 -> -979067.7966
C15: Итоговые затраты по сценариям: | G15: =SUM(G12:H14) -> 4815268.362 | I15: =SUM(I12:J14) -> 4255598.87
C16: Расчет для схемы кредит:
C17: Собств. средства: | E17: =$F$4*$F$7+$F$5 -> 1100000 | F17: Заемные средства: | H17: =$F$4*(1-$F$7) -> 4000000 | I17: Ставка по кредиту, % | J17: 0.2 | K17: Изменение расчетного срока, мес.
A18: дней | B18: год | C18: № | D18: Имущество на балансе | E18: Амортизация | F18: Погашение осн. долга ежемесячно | G18: Погашение процентов ежемесячно | H18: Остаток долга по кредиту | I18: Налог на имущество / транспорт | J18: Экономия доходов / прибыли | K18: =$F$9 -> 48
A19: 365 | B19: 1 | C19: 1 | D19: =F4/(1+$J$6) -> 4237288.136 | E19: =IF(C19="","",IF(SUM(E$18:E18)+($F$4/(1+$J$6)/$F$9)-1>$F$4/(1+$J$6),"",$F$4/(1+$J$6)/$F$9)) -> 88276.83616 | F19: =IF($F$8=$A$9,$H$17/$F$6,-PMT($J$17/12,$F$6,$H$17,0,0)-G19) -> 111111.1111 | G19: =$H$17*$J$17/12 -> 66666.66667 | H19: =$H$17-F19 -> 3888888.889 | J19: =IF($C19="","",(IF(E19="",0,E19)+G19+I19)*IF($H$4=$A$4,$J$5,$J$7)) -> 30988.70056 | K19: =IF(#REF!=0,MIN(K$18:K18),$F$9-$C17) -> 
A20: 365 | B20: 1 | C20: =IFERROR(IF(C19+1<=$F$6,C19+1,""),"") -> 2 | D20: =IF(OR(C19="",E20=""),"",D19-E19) -> 4149011.299 | E20: =IF(C20="","",IF(SUM(E$19:E19)+($F$4/(1+$J$6)/$F$9)-1>$F$4/(1+$J$6),"",$F$4/(1+$J$6)/$F$9)) -> 88276.83616 | F20: =IF(OR(SUM(F$19:F19)=$H$17,$H19=""),"",IF($F$8=$A$9,$H$17/$F$6,-PMT($J$17/12,$F$6,$H$17,0,0)-G20)) -> 111111.1111 | G20: =IF(OR(SUM(F$19:F19)=$H$17,$H19=""),"",$H19*$J$17/12) -> 64814.81481 | H20: =IFERROR($H19-F20,"") -> 3777777.778 | J20: 30618.33019 | K20: =IF($J19=0,MIN(K$18:K19),$F$9-$C19) -> 47
A21: 365 | B21: 1 | C21: =IFERROR(IF(C20+1<=$F$6,C20+1,""),"") -> 3 | D21: =IF(OR(C20="",E21=""),"",D20-E20) -> 4060734.463 | E21: =IF(C21="","",IF(SUM(E$19:E20)+($F$4/(1+$J$6)/$F$9)-1>$F$4/(1+$J$6),"",$F$4/(1+$J$6)/$F$9)) -> 88276.83616 | F21: =IF(OR(SUM(F$19:F20)=$H$17,$H20=""),"",IF($F$8=$A$9,$H$17/$F$6,-PMT($J$17/12,$F$6,$H$17,0,0)-G21)) -> 111111.1111 | G21: =IF(OR(SUM(F$19:F20)=$H$17,$H20=""),"",$H20*$J$17/12) -> 62962.96296 | H21: 3666666.667 | J21: 30247.95982 | K21: =IF($J20=0,MIN(K$18:K20),$F$9-$C20) -> 46
A22: 365 | B22: 1 | C22: 4 | D22: 3972457.627 | E22: =IF(C22="","",IF(SUM(E$19:E21)+($F$4/(1+$J$6)/$F$9)-1>$F$4/(1+$J$6),"",$F$4/(1+$J$6)/$F$9)) -> 88276.83616 | F22: =IF(OR(SUM(F$19:F21)=$H$17,$H21=""),"",IF($F$8=$A$9,$H$17/$F$6,-PMT($J$17/12,$F$6,$H$17,0,0)-G22)) -> 111111.1111 | G22: =IF(OR(SUM(F$19:F21)=$H$17,$H21=""),"",$H21*$J$17/12) -> 61111.11111 | H22: 3555555.556 | J22: 29877.58945 | K22: =IF($J21=0,MIN(K$18:K21),$F$9-$C21) -> 45
A23: 365 | B23: 1 | C23: 5 | D23: 3884180.791 | E23: =IF(C23="","",IF(SUM(E$19:E22)+($F$4/(1+$J$6)/$F$9)-1>$F$4/(1+$J$6),"",$F$4/(1+$J$6)/$F$9)) -> 88276.83616 | F23: =IF(OR(SUM(F$19:F22)=$H$17,$H22=""),"",IF($F$8=$A$9,$H$17/$F$6,-PMT($J$17/12,$F$6,$H$17,0,0)-G23)) -> 111111.1111 | G23: =IF(OR(SUM(F$19:F22)=$H$17,$H22=""),"",$H22*$J$17/12) -> 59259.25926 | H23: 3444444.444 | J23: 29507.21908 | K23: =IF($J22=0,MIN(K$18:K22),$F$9-$C22) -> 44
A24: 365 | B24: 1 | C24: 6 | D24: 3795903.955 | E24: =IF(C24="","",IF(SUM(E$19:E23)+($F$4/(1+$J$6)/$F$9)-1>$F$4/(1+$J$6),"",$F$4/(1+$J$6)/$F$9)) -> 88276.83616 | F24: =IF(OR(SUM(F$19:F23)=$H$17,$H23=""),"",IF($F$8=$A$9,$H$17/$F$6,-PMT($J$17/12,$F$6,$H$17,0,0)-G24)) -> 111111.1111 | G24: =IF(OR(SUM(F$19:F23)=$H$17,$H23=""),"",$H23*$J$17/12) -> 57407.40741 | H24: 3333333.333 | J24: 29136.84871 | K24: =IF($J23=0,MIN(K$18:K23),$F$9-$C23) -> 43
A25: 365 | B25: 1 | C25: 7 | D25: 3707627.119 | E25: =IF(C25="","",IF(SUM(E$19:E24)+($F$4/(1+$J$6)/$F$9)-1>$F$4/(1+$J$6),"",$F$4/(1+$J$6)/$F$9)) -> 88276.83616 | F25: =IF(OR(SUM(F$19:F24)=$H$17,$H24=""),"",IF($F$8=$A$9,$H$17/$F$6,-PMT($J$17/12,$F$6,$H$17,0,0)-G25)) -> 111111.1111 | G25: =IF(OR(SUM(F$19:F24)=$H$17,$H24=""),"",$H24*$J$17/12) -> 55555.55556 | H25: 3222222.222 | J25: 28766.47834 | K25: =IF($J24=0,MIN(K$18:K24),$F$9-$C24) -> 42
A26: 365 | B26: 1 | C26: 8 | D26: 3619350.282 | E26: =IF(C26="","",IF(SUM(E$19:E25)+($F$4/(1+$J$6)/$F$9)-1>$F$4/(1+$J$6),"",$F$4/(1+$J$6)/$F$9)) -> 88276.83616 | F26: =IF(OR(SUM(F$19:F25)=$H$17,$H25=""),"",IF($F$8=$A$9,$H$17/$F$6,-PMT($J$17/12,$F$6,$H$17,0,0)-G26)) -> 111111.1111 | G26: =IF(OR(SUM(F$19:F25)=$H$17,$H25=""),"",$H25*$J$17/12) -> 53703.7037 | H26: 3111111.111 | J26: 28396.10797 | K26: =IF($J25=0,MIN(K$18:K25),$F$9-$C25) -> 41
A27: 365 | B27: 1 | C27: 9 | D27: 3531073.446 | E27: =IF(C27="","",IF(SUM(E$19:E26)+($F$4/(1+$J$6)/$F$9)-1>$F$4/(1+$J$6),"",$F$4/(1+$J$6)/$F$9)) -> 88276.83616 | F27: =IF(OR(SUM(F$19:F26)=$H$17,$H26=""),"",IF($F$8=$A$9,$H$17/$F$6,-PMT($J$17/12,$F$6,$H$17,0,0)-G27)) -> 111111.1111 | G27: =IF(OR(SUM(F$19:F26)=$H$17,$H26=""),"",$H26*$J$17/12) -> 51851.85185 | H27: 3000000 | J27: 28025.7376 | K27: =IF($J26=0,MIN(K$18:K26),$F$9-$C26) -> 40
A28: 365 | B28: 1 | C28: 10 | D28: 3442796.61 | E28: =IF(C28="","",IF(SUM(E$19:E27)+($F$4/(1+$J$6)/$F$9)-1>$F$4/(1+$J$6),"",$F$4/(1+$J$6)/$F$9)) -> 88276.83616 | F28: =IF(OR(SUM(F$19:F27)=$H$17,$H27=""),"",IF($F$8=$A$9,$H$17/$F$6,-PMT($J$17/12,$F$6,$H$17,0,0)-G28)) -> 111111.1111 | G28: =IF(OR(SUM(F$19:F27)=$H$17,$H27=""),"",$H27*$J$17/12) -> 50000 | H28: 2888888.889 | J28: 27655.36723 | K28: =IF($J27=0,MIN(K$18:K27),$F$9-$C27) -> 39
A29: 365 | B29: 1 | C29: 11 | D29: 3354519.774 | E29: =IF(C29="","",IF(SUM(E$19:E28)+($F$4/(1+$J$6)/$F$9)-1>$F$4/(1+$J$6),"",$F$4/(1+$J$6)/$F$9)) -> 88276.83616 | F29: =IF(OR(SUM(F$19:F28)=$H$17,$H28=""),"",IF($F$8=$A$9,$H$17/$F$6,-PMT($J$17/12,$F$6,$H$17,0,0)-G29)) -> 111111.1111 | G29: =IF(OR(SUM(F$19:F28)=$H$17,$H28=""),"",$H28*$J$17/12) -> 48148.14815 | H29: 2777777.778 | J29: 27284.99686 | K29: =IF($J28=0,MIN(K$18:K28),$F$9-$C28) -> 38
A30: 365 | B30: 1 | C30: 12 | D30: 3266242.938 | E30: =IF(C30="","",IF(SUM(E$19:E29)+($F$4/(1+$J$6)/$F$9)-1>$F$4/(1+$J$6),"",$F$4/(1+$J$6)/$F$9)) -> 88276.83616 | F30: =IF(OR(SUM(F$19:F29)=$H$17,$H29=""),"",IF($F$8=$A$9,$H$17/$F$6,-PMT($J$17/12,$F$6,$H$17,0,0)-G30)) -> 111111.1111 | G30: =IF(OR(SUM(F$19:F29)=$H$17,$H29=""),"",$H29*$J$17/12) -> 46296.2963 | H30: 2666666.667 | I30: =IF(OR(D30="",E30=""),"",IF($H$4=$A$4,(D30+D19)*50%*$J$8+$J$9,$J$9)) -> 82538.84181 | J30: 43422.39485 | K30: =IF($J29=0,MIN(K$18:K29),$F$9-$C29) -> 37
A31: 365 | B31: =B19+1 -> 2 | C31: 13 | D31: 3177966.102 | E31: =IF(C31="","",IF(SUM(E$19:E30)+($F$4/(1+$J$6)/$F$9)-1>$F$4/(1+$J$6),"",$F$4/(1+$J$6)/$F$9)) -> 88276.83616 | F31: =IF(OR(SUM(F$19:F30)=$H$17,$H30=""),"",IF($F$8=$A$9,$H$17/$F$6,-PMT($J$17/12,$F$6,$H$17,0,0)-G31)) -> 111111.1111 | G31: =IF(OR(SUM(F$19:F30)=$H$17,$H30=""),"",$H30*$J$17/12) -> 44444.44444 | H31: 2555555.556 | J31: 26544.25612 | K31: =IF($J30=0,MIN(K$18:K30),$F$9-$C30) -> 36
A32: 365 | B32: =B20+1 -> 2 | C32: 14 | D32: 3089689.266 | E32: =IF(C32="","",IF(SUM(E$19:E31)+($F$4/(1+$J$6)/$F$9)-1>$F$4/(1+$J$6),"",$F$4/(1+$J$6)/$F$9)) -> 88276.83616 | F32: =IF(OR(SUM(F$19:F31)=$H$17,$H31=""),"",IF($F$8=$A$9,$H$17/$F$6,-PMT($J$17/12,$F$6,$H$17,0,0)-G32)) -> 111111.1111 | G32: =IF(OR(SUM(F$19:F31)=$H$17,$H31=""),"",$H31*$J$17/12) -> 42592.59259 | H32: 2444444.444 | J32: 26173.88575 | K32: =IF($J31=0,MIN(K$18:K31),$F$9-$C31) -> 35
A33: 365 | B33: =B21+1 -> 2 | C33: 15 | D33: 3001412.429 | E33: =IF(C33="","",IF(SUM(E$19:E32)+($F$4/(1+$J$6)/$F$9)-1>$F$4/(1+$J$6),"",$F$4/(1+$J$6)/$F$9)) -> 88276.83616 | F33: =IF(OR(SUM(F$19:F32)=$H$17,$H32=""),"",IF($F$8=$A$9,$H$17/$F$6,-PMT($J$17/12,$F$6,$H$17,0,0)-G33)) -> 111111.1111 | G33: =IF(OR(SUM(F$19:F32)=$H$17,$H32=""),"",$H32*$J$17/12) -> 40740.74074 | H33: 2333333.333 | J33: 25803.51538 | K33: =IF($J32=0,MIN(K$18:K32),$F$9-$C32) -> 34
A34: 365 | B34: 2 | C34: 16 | D34: 2913135.593 | E34: =IF(C34="","",IF(SUM(E$19:E33)+($F$4/(1+$J$6)/$F$9)-1>$F$4/(1+$J$6),"",$F$4/(1+$J$6)/$F$9)) -> 88276.83616 | F34: =IF(OR(SUM(F$19:F33)=$H$17,$H33=""),"",IF($F$8=$A$9,$H$17/$F$6,-PMT($J$17/12,$F$6,$H$17,0,0)-G34)) -> 111111.1111 | G34: =IF(OR(SUM(F$19:F33)=$H$17,$H33=""),"",$H33*$J$17/12) -> 38888.88889 | H34: 2222222.222 | J34: 25433.14501 | K34: =IF($J33=0,MIN(K$18:K33),$F$9-$C33) -> 33
A35: 365 | B35: 2 | C35: 17 | D35: 2824858.757 | E35: =IF(C35="","",IF(SUM(E$19:E34)+($F$4/(1+$J$6)/$F$9)-1>$F$4/(1+$J$6),"",$F$4/(1+$J$6)/$F$9)) -> 88276.83616 | F35: =IF(OR(SUM(F$19:F34)=$H$17,$H34=""),"",IF($F$8=$A$9,$H$17/$F$6,-PMT($J$17/12,$F$6,$H$17,0,0)-G35)) -> 111111.1111 | G35: =IF(OR(SUM(F$19:F34)=$H$17,$H34=""),"",$H34*$J$17/12) -> 37037.03704 | H35: 2111111.111 | J35: 25062.77464 | K35: =IF($J34=0,MIN(K$18:K34),$F$9-$C34) -> 32
A36: 365 | B36: 2 | C36: 18 | D36: 2736581.921 | E36: =IF(C36="","",IF(SUM(E$19:E35)+($F$4/(1+$J$6)/$F$9)-1>$F$4/(1+$J$6),"",$F$4/(1+$J$6)/$F$9)) -> 88276.83616 | F36: =IF(OR(SUM(F$19:F35)=$H$17,$H35=""),"",IF($F$8=$A$9,$H$17/$F$6,-PMT($J$17/12,$F$6,$H$17,0,0)-G36)) -> 111111.1111 | G36: =IF(OR(SUM(F$19:F35)=$H$17,$H35=""),"",$H35*$J$17/12) -> 35185.18519 | H36: 2000000 | J36: 24692.40427 | K36: =IF($J35=0,MIN(K$18:K35),$F$9-$C35) -> 31
A37: 365 | B37: 2 | C37: 19 | D37: 2648305.085 | E37: =IF(C37="","",IF(SUM(E$19:E36)+($F$4/(1+$J$6)/$F$9)-1>$F$4/(1+$J$6),"",$F$4/(1+$J$6)/$F$9)) -> 88276.83616 | F37: =IF(OR(SUM(F$19:F36)=$H$17,$H36=""),"",IF($F$8=$A$9,$H$17/$F$6,-PMT($J$17/12,$F$6,$H$17,0,0)-G37)) -> 111111.1111 | G37: =IF(OR(SUM(F$19:F36)=$H$17,$H36=""),"",$H36*$J$17/12) -> 33333.33333 | H37: 1888888.889 | J37: 24322.0339 | K37: =IF($J36=0,MIN(K$18:K36),$F$9-$C36) -> 30
A38: 365 | B38: 2 | C38: 20 | D38: 2560028.249 | E38: =IF(C38="","",IF(SUM(E$19:E37)+($F$4/(1+$J$6)/$F$9)-1>$F$4/(1+$J$6),"",$F$4/(1+$J$6)/$F$9)) -> 88276.83616 | F38: =IF(OR(SUM(F$19:F37)=$H$17,$H37=""),"",IF($F$8=$A$9,$H$17/$F$6,-PMT($J$17/12,$F$6,$H$17,0,0)-G38)) -> 111111.1111 | G38: =IF(OR(SUM(F$19:F37)=$H$17,$H37=""),"",$H37*$J$17/12) -> 31481.48148 | H38: 1777777.778 | J38: 23951.66353 | K38: =IF($J37=0,MIN(K$18:K37),$F$9-$C37) -> 29
A39: 365 | B39: 2 | C39: 21 | D39: 2471751.412 | E39: =IF(C39="","",IF(SUM(E$19:E38)+($F$4/(1+$J$6)/$F$9)-1>$F$4/(1+$J$6),"",$F$4/(1+$J$6)/$F$9)) -> 88276.83616 | F39: =IF(OR(SUM(F$19:F38)=$H$17,$H38=""),"",IF($F$8=$A$9,$H$17/$F$6,-PMT($J$17/12,$F$6,$H$17,0,0)-G39)) -> 111111.1111 | G39: =IF(OR(SUM(F$19:F38)=$H$17,$H38=""),"",$H38*$J$17/12) -> 29629.62963 | H39: 1666666.667 | J39: 23581.29316 | K39: =IF($J38=0,MIN(K$18:K38),$F$9-$C38) -> 28
A40: 365 | B40: 2 | C40: 22 | D40: 2383474.576 | E40: =IF(C40="","",IF(SUM(E$19:E39)+($F$4/(1+$J$6)/$F$9)-1>$F$4/(1+$J$6),"",$F$4/(1+$J$6)/$F$9)) -> 88276.83616 | F40: =IF(OR(SUM(F$19:F39)=$H$17,$H39=""),"",IF($F$8=$A$9,$H$17/$F$6,-PMT($J$17/12,$F$6,$H$17,0,0)-G40)) -> 111111.1111 | G40: =IF(OR(SUM(F$19:F39)=$H$17,$H39=""),"",$H39*$J$17/12) -> 27777.77778 | H40: 1555555.556 | J40: 23210.92279 | K40: =IF($J39=0,MIN(K$18:K39),$F$9-$C39) -> 27
A41: 365 | B41: 2 | C41: 23 | D41: 2295197.74 | E41: =IF(C41="","",IF(SUM(E$19:E40)+($F$4/(1+$J$6)/$F$9)-1>$F$4/(1+$J$6),"",$F$4/(1+$J$6)/$F$9)) -> 88276.83616 | F41: =IF(OR(SUM(F$19:F40)=$H$17,$H40=""),"",IF($F$8=$A$9,$H$17/$F$6,-PMT($J$17/12,$F$6,$H$17,0,0)-G41)) -> 111111.1111 | G41: =IF(OR(SUM(F$19:F40)=$H$17,$H40=""),"",$H40*$J$17/12) -> 25925.92593 | H41: 1444444.444 | J41: 22840.55242 | K41: =IF($J40=0,MIN(K$18:K40),$F$9-$C40) -> 26
A42: 365 | B42: 2 | C42: 24 | D42: 2206920.904 | E42: =IF(C42="","",IF(SUM(E$19:E41)+($F$4/(1+$J$6)/$F$9)-1>$F$4/(1+$J$6),"",$F$4/(1+$J$6)/$F$9)) -> 88276.83616 | F42: =IF(OR(SUM(F$19:F41)=$H$17,$H41=""),"",IF($F$8=$A$9,$H$17/$F$6,-PMT($J$17/12,$F$6,$H$17,0,0)-G42)) -> 111111.1111 | G42: =IF(OR(SUM(F$19:F41)=$H$17,$H41=""),"",$H41*$J$17/12) -> 24074.07407 | H42: 1333333.333 | I42: =IF(OR(D42="",E42=""),"",IF($H$4=$A$4,(D42+D31)*50%*$J$8+$J$9,$J$9)) -> 59233.75706 | J42: 34316.93346 | K42: =IF($J41=0,MIN(K$18:K41),$F$9-$C41) -> 25
A43: 365 | B43: =B31+1 -> 3 | C43: 25 | D43: 2118644.068 | E43: =IF(C43="","",IF(SUM(E$19:E42)+($F$4/(1+$J$6)/$F$9)-1>$F$4/(1+$J$6),"",$F$4/(1+$J$6)/$F$9)) -> 88276.83616 | F43: =IF(OR(SUM(F$19:F42)=$H$17,$H42=""),"",IF($F$8=$A$9,$H$17/$F$6,-PMT($J$17/12,$F$6,$H$17,0,0)-G43)) -> 111111.1111 | G43: =IF(OR(SUM(F$19:F42)=$H$17,$H42=""),"",$H42*$J$17/12) -> 22222.22222 | H43: 1222222.222 | J43: 22099.81168 | K43: =IF($J42=0,MIN(K$18:K42),$F$9-$C42) -> 24
A44: 365 | B44: 3 | C44: 26 | D44: 2030367.232 | E44: =IF(C44="","",IF(SUM(E$19:E43)+($F$4/(1+$J$6)/$F$9)-1>$F$4/(1+$J$6),"",$F$4/(1+$J$6)/$F$9)) -> 88276.83616 | F44: =IF(OR(SUM(F$19:F43)=$H$17,$H43=""),"",IF($F$8=$A$9,$H$17/$F$6,-PMT($J$17/12,$F$6,$H$17,0,0)-G44)) -> 111111.1111 | G44: =IF(OR(SUM(F$19:F43)=$H$17,$H43=""),"",$H43*$J$17/12) -> 20370.37037 | H44: 1111111.111 | J44: 21729.44131 | K44: =IF($J43=0,MIN(K$18:K43),$F$9-$C43) -> 23
A45: 365 | B45: 3 | C45: 27 | D45: 1942090.395 | E45: =IF(C45="","",IF(SUM(E$19:E44)+($F$4/(1+$J$6)/$F$9)-1>$F$4/(1+$J$6),"",$F$4/(1+$J$6)/$F$9)) -> 88276.83616 | F45: =IF(OR(SUM(F$19:F44)=$H$17,$H44=""),"",IF($F$8=$A$9,$H$17/$F$6,-PMT($J$17/12,$F$6,$H$17,0,0)-G45)) -> 111111.1111 | G45: =IF(OR(SUM(F$19:F44)=$H$17,$H44=""),"",$H44*$J$17/12) -> 18518.51852 | H45: 1000000 | J45: 21359.07094 | K45: =IF($J44=0,MIN(K$18:K44),$F$9-$C44) -> 22
A46: 365 | B46: 3 | C46: 28 | D46: 1853813.559 | E46: =IF(C46="","",IF(SUM(E$19:E45)+($F$4/(1+$J$6)/$F$9)-1>$F$4/(1+$J$6),"",$F$4/(1+$J$6)/$F$9)) -> 88276.83616 | F46: =IF(OR(SUM(F$19:F45)=$H$17,$H45=""),"",IF($F$8=$A$9,$H$17/$F$6,-PMT($J$17/12,$F$6,$H$17,0,0)-G46)) -> 111111.1111 | G46: =IF(OR(SUM(F$19:F45)=$H$17,$H45=""),"",$H45*$J$17/12) -> 16666.66667 | H46: 888888.8889 | J46: 20988.70056 | K46: =IF($J45=0,MIN(K$18:K45),$F$9-$C45) -> 21
A47: 365 | B47: 3 | C47: 29 | D47: 1765536.723 | E47: =IF(C47="","",IF(SUM(E$19:E46)+($F$4/(1+$J$6)/$F$9)-1>$F$4/(1+$J$6),"",$F$4/(1+$J$6)/$F$9)) -> 88276.83616 | F47: =IF(OR(SUM(F$19:F46)=$H$17,$H46=""),"",IF($F$8=$A$9,$H$17/$F$6,-PMT($J$17/12,$F$6,$H$17,0,0)-G47)) -> 111111.1111 | G47: =IF(OR(SUM(F$19:F46)=$H$17,$H46=""),"",$H46*$J$17/12) -> 14814.81481 | H47: 777777.7778 | J47: 20618.33019 | K47: =IF($J46=0,MIN(K$18:K46),$F$9-$C46) -> 20
A48: 365 | B48: 3 | C48: 30 | D48: 1677259.887 | E48: =IF(C48="","",IF(SUM(E$19:E47)+($F$4/(1+$J$6)/$F$9)-1>$F$4/(1+$J$6),"",$F$4/(1+$J$6)/$F$9)) -> 88276.83616 | F48: =IF(OR(SUM(F$19:F47)=$H$17,$H47=""),"",IF($F$8=$A$9,$H$17/$F$6,-PMT($J$17/12,$F$6,$H$17,0,0)-G48)) -> 111111.1111 | G48: =IF(OR(SUM(F$19:F47)=$H$17,$H47=""),"",$H47*$J$17/12) -> 12962.96296 | H48: 666666.6667 | J48: 20247.95982 | K48: =IF($J47=0,MIN(K$18:K47),$F$9-$C47) -> 19
A49: 365 | B49: 3 | C49: 31 | D49: 1588983.051 | E49: =IF(C49="","",IF(SUM(E$19:E48)+($F$4/(1+$J$6)/$F$9)-1>$F$4/(1+$J$6),"",$F$4/(1+$J$6)/$F$9)) -> 88276.83616 | F49: =IF(OR(SUM(F$19:F48)=$H$17,$H48=""),"",IF($F$8=$A$9,$H$17/$F$6,-PMT($J$17/12,$F$6,$H$17,0,0)-G49)) -> 111111.1111 | G49: =IF(OR(SUM(F$19:F48)=$H$17,$H48=""),"",$H48*$J$17/12) -> 11111.11111 | H49: 555555.5556 | J49: 19877.58945 | K49: =IF($J48=0,MIN(K$18:K48),$F$9-$C48) -> 18
A50: 365 | B50: 3 | C50: 32 | D50: 1500706.215 | E50: =IF(C50="","",IF(SUM(E$19:E49)+($F$4/(1+$J$6)/$F$9)-1>$F$4/(1+$J$6),"",$F$4/(1+$J$6)/$F$9)) -> 88276.83616 | F50: =IF(OR(SUM(F$19:F49)=$H$17,$H49=""),"",IF($F$8=$A$9,$H$17/$F$6,-PMT($J$17/12,$F$6,$H$17,0,0)-G50)) -> 111111.1111 | G50: =IF(OR(SUM(F$19:F49)=$H$17,$H49=""),"",$H49*$J$17/12) -> 9259.259259 | H50: 444444.4444 | J50: 19507.21908 | K50: =IF($J49=0,MIN(K$18:K49),$F$9-$C49) -> 17
A51: 365 | B51: 3 | C51: 33 | D51: 1412429.379 | E51: =IF(C51="","",IF(SUM(E$19:E50)+($F$4/(1+$J$6)/$F$9)-1>$F$4/(1+$J$6),"",$F$4/(1+$J$6)/$F$9)) -> 88276.83616 | F51: =IF(OR(SUM(F$19:F50)=$H$17,$H50=""),"",IF($F$8=$A$9,$H$17/$F$6,-PMT($J$17/12,$F$6,$H$17,0,0)-G51)) -> 111111.1111 | G51: =IF(OR(SUM(F$19:F50)=$H$17,$H50=""),"",$H50*$J$17/12) -> 7407.407407 | H51: 333333.3333 | J51: 19136.84871 | K51: =IF($J50=0,MIN(K$18:K50),$F$9-$C50) -> 16
A52: 365 | B52: 3 | C52: 34 | D52: 1324152.542 | E52: =IF(C52="","",IF(SUM(E$19:E51)+($F$4/(1+$J$6)/$F$9)-1>$F$4/(1+$J$6),"",$F$4/(1+$J$6)/$F$9)) -> 88276.83616 | F52: =IF(OR(SUM(F$19:F51)=$H$17,$H51=""),"",IF($F$8=$A$9,$H$17/$F$6,-PMT($J$17/12,$F$6,$H$17,0,0)-G52)) -> 111111.1111 | G52: =IF(OR(SUM(F$19:F51)=$H$17,$H51=""),"",$H51*$J$17/12) -> 5555.555556 | H52: =IFERROR($H51-F52,"") -> 222222.2222 | J52: 18766.47834 | K52: =IF($J51=0,MIN(K$18:K51),$F$9-$C51) -> 15
A53: 365 | B53: 3 | C53: 35 | D53: 1235875.706 | E53: =IF(C53="","",IF(SUM(E$19:E52)+($F$4/(1+$J$6)/$F$9)-1>$F$4/(1+$J$6),"",$F$4/(1+$J$6)/$F$9)) -> 88276.83616 | F53: =IF(OR(SUM(F$19:F52)=$H$17,$H52=""),"",IF($F$8=$A$9,$H$17/$F$6,-PMT($J$17/12,$F$6,$H$17,0,0)-G53)) -> 111111.1111 | G53: =IF(OR(SUM(F$19:F52)=$H$17,$H52=""),"",$H52*$J$17/12) -> 3703.703704 | H53: 111111.1111 | J53: 18396.10797 | K53: =IF($J52=0,MIN(K$18:K52),$F$9-$C52) -> 14
A54: 365 | B54: 3 | C54: 36 | D54: =IF(OR(C53="",E54=""),"",D53-E53) -> 1147598.87 | E54: =IF(C54="","",IF(SUM(E$19:E53)+($F$4/(1+$J$6)/$F$9)-1>$F$4/(1+$J$6),"",$F$4/(1+$J$6)/$F$9)) -> 88276.83616 | F54: =IF(OR(SUM(F$19:F53)=$H$17,$H53=""),"",IF($F$8=$A$9,$H$17/$F$6,-PMT($J$17/12,$F$6,$H$17,0,0)-G54)) -> 111111.1111 | G54: =IF(OR(SUM(F$19:F53)=$H$17,$H53=""),"",$H53*$J$17/12) -> 1851.851852 | H54: 2.590240911e-09 | I54: =IF(OR(D54="",E54=""),"",IF($H$4=$A$4,(D54+D43)*50%*$J$8+$J$9,$J$9)) -> 35928.67232 | J54: 25211.47207 | K54: =IF($J53=0,MIN(K$18:K53),$F$9-$C53) -> 13
A55: 365 | B55: =B43+1 -> 4 | E55: =IF(C55="","",IF(SUM(E$19:E54)+($F$4/(1+$J$6)/$F$9)-1>$F$4/(1+$J$6),"",$F$4/(1+$J$6)/$F$9)) ->  | F55: =IF(OR(SUM(F$19:F54)=$H$17,$H54=""),"",IF($F$8=$A$9,$H$17/$F$6,-PMT($J$17/12,$F$6,$H$17,0,0)-G55)) ->  | G55: =IF(OR(SUM(F$19:F54)=$H$17,$H54=""),"",$H54*$J$17/12) ->  | H55: =IFERROR($H54-F55,"") ->  | K55: =IF($J54=0,MIN(K$18:K54),$F$9-$C54) -> 12
A56: 365 | B56: 4 | E56: =IF(C56="","",IF(SUM(E$19:E55)+($F$4/(1+$J$6)/$F$9)-1>$F$4/(1+$J$6),"",$F$4/(1+$J$6)/$F$9)) ->  | F56: =IF(OR(SUM(F$19:F55)=$H$17,$H55=""),"",IF($F$8=$A$9,$H$17/$F$6,-PMT($J$17/12,$F$6,$H$17,0,0)-G56)) ->  | G56: =IF(OR(SUM(F$19:F55)=$H$17,$H55=""),"",$H55*$J$17/12) ->  | K56: =IF($J55=0,MIN(K$18:K55),$F$9-$C55) -> 
A57: 365 | B57: 4 | E57: =IF(C57="","",IF(SUM(E$19:E56)+($F$4/(1+$J$6)/$F$9)-1>$F$4/(1+$J$6),"",$F$4/(1+$J$6)/$F$9)) ->  | F57: =IF(OR(SUM(F$19:F56)=$H$17,$H56=""),"",IF($F$8=$A$9,$H$17/$F$6,-PMT($J$17/12,$F$6,$H$17,0,0)-G57)) ->  | G57: =IF(OR(SUM(F$19:F56)=$H$17,$H56=""),"",$H56*$J$17/12) ->  | K57: =IF($J56=0,MIN(K$18:K56),$F$9-$C56) -> 
A58: 365 | B58: 4 | E58: =IF(C58="","",IF(SUM(E$19:E57)+($F$4/(1+$J$6)/$F$9)-1>$F$4/(1+$J$6),"",$F$4/(1+$J$6)/$F$9)) ->  | F58: =IF(OR(SUM(F$19:F57)=$H$17,$H57=""),"",IF($F$8=$A$9,$H$17/$F$6,-PMT($J$17/12,$F$6,$H$17,0,0)-G58)) ->  | G58: =IF(OR(SUM(F$19:F57)=$H$17,$H57=""),"",$H57*$J$17/12) ->  | K58: =IF($J57=0,MIN(K$18:K57),$F$9-$C57) -> 
A59: 365 | B59: 4 | E59: =IF(C59="","",IF(SUM(E$19:E58)+($F$4/(1+$J$6)/$F$9)-1>$F$4/(1+$J$6),"",$F$4/(1+$J$6)/$F$9)) ->  | F59: =IF(OR(SUM(F$19:F58)=$H$17,$H58=""),"",IF($F$8=$A$9,$H$17/$F$6,-PMT($J$17/12,$F$6,$H$17,0,0)-G59)) ->  | G59: =IF(OR(SUM(F$19:F58)=$H$17,$H58=""),"",$H58*$J$17/12) ->  | K59: =IF($J58=0,MIN(K$18:K58),$F$9-$C58) -> 
A60: 365 | B60: 4 | E60: =IF(C60="","",IF(SUM(E$19:E59)+($F$4/(1+$J$6)/$F$9)-1>$F$4/(1+$J$6),"",$F$4/(1+$J$6)/$F$9)) ->  | F60: =IF(OR(SUM(F$19:F59)=$H$17,$H59=""),"",IF($F$8=$A$9,$H$17/$F$6,-PMT($J$17/12,$F$6,$H$17,0,0)-G60)) ->  | G60: =IF(OR(SUM(F$19:F59)=$H$17,$H59=""),"",$H59*$J$17/12) ->  | K60: =IF($J59=0,MIN(K$18:K59),$F$9-$C59) -> 
A61: 365 | B61: 4 | E61: =IF(C61="","",IF(SUM(E$19:E60)+($F$4/(1+$J$6)/$F$9)-1>$F$4/(1+$J$6),"",$F$4/(1+$J$6)/$F$9)) ->  | F61: =IF(OR(SUM(F$19:F60)=$H$17,$H60=""),"",IF($F$8=$A$9,$H$17/$F$6,-PMT($J$17/12,$F$6,$H$17,0,0)-G61)) ->  | G61: =IF(OR(SUM(F$19:F60)=$H$17,$H60=""),"",$H60*$J$17/12) ->  | K61: =IF($J60=0,MIN(K$18:K60),$F$9-$C60) -> 
A62: 365 | B62: 4 | E62: =IF(C62="","",IF(SUM(E$19:E61)+($F$4/(1+$J$6)/$F$9)-1>$F$4/(1+$J$6),"",$F$4/(1+$J$6)/$F$9)) ->  | F62: =IF(OR(SUM(F$19:F61)=$H$17,$H61=""),"",IF($F$8=$A$9,$H$17/$F$6,-PMT($J$17/12,$F$6,$H$17,0,0)-G62)) ->  | G62: =IF(OR(SUM(F$19:F61)=$H$17,$H61=""),"",$H61*$J$17/12) ->  | K62: =IF($J61=0,MIN(K$18:K61),$F$9-$C61) -> 
A63: 365 | B63: 4 | E63: =IF(C63="","",IF(SUM(E$19:E62)+($F$4/(1+$J$6)/$F$9)-1>$F$4/(1+$J$6),"",$F$4/(1+$J$6)/$F$9)) ->  | F63: =IF(OR(SUM(F$19:F62)=$H$17,$H62=""),"",IF($F$8=$A$9,$H$17/$F$6,-PMT($J$17/12,$F$6,$H$17,0,0)-G63)) ->  | G63: =IF(OR(SUM(F$19:F62)=$H$17,$H62=""),"",$H62*$J$17/12) ->  | K63: =IF($J62=0,MIN(K$18:K62),$F$9-$C62) -> 
A64: 365 | B64: 4 | E64: =IF(C64="","",IF(SUM(E$19:E63)+($F$4/(1+$J$6)/$F$9)-1>$F$4/(1+$J$6),"",$F$4/(1+$J$6)/$F$9)) ->  | F64: =IF(OR(SUM(F$19:F63)=$H$17,$H63=""),"",IF($F$8=$A$9,$H$17/$F$6,-PMT($J$17/12,$F$6,$H$17,0,0)-G64)) ->  | G64: =IF(OR(SUM(F$19:F63)=$H$17,$H63=""),"",$H63*$J$17/12) ->  | K64: =IF($J63=0,MIN(K$18:K63),$F$9-$C63) -> 
A65: 365 | B65: 4 | E65: =IF(C65="","",IF(SUM(E$19:E64)+($F$4/(1+$J$6)/$F$9)-1>$F$4/(1+$J$6),"",$F$4/(1+$J$6)/$F$9)) ->  | F65: =IF(OR(SUM(F$19:F64)=$H$17,$H64=""),"",IF($F$8=$A$9,$H$17/$F$6,-PMT($J$17/12,$F$6,$H$17,0,0)-G65)) ->  | G65: =IF(OR(SUM(F$19:F64)=$H$17,$H64=""),"",$H64*$J$17/12) ->  | K65: =IF($J64=0,MIN(K$18:K64),$F$9-$C64) -> 
A66: 365 | B66: 4 | E66: =IF(C66="","",IF(SUM(E$19:E65)+($F$4/(1+$J$6)/$F$9)-1>$F$4/(1+$J$6),"",$F$4/(1+$J$6)/$F$9)) ->  | F66: =IF(OR(SUM(F$19:F65)=$H$17,$H65=""),"",IF($F$8=$A$9,$H$17/$F$6,-PMT($J$17/12,$F$6,$H$17,0,0)-G66)) ->  | G66: =IF(OR(SUM(F$19:F65)=$H$17,$H65=""),"",$H65*$J$17/12) ->  | I66: =IF(OR(D66="",E66=""),0,IF($H$4=$A$4,(D66+D55)*50%*$J$8+$J$9,$J$9)) -> 0 | K66: =IF($J65=0,MIN(K$18:K65),$F$9-$C65) -> 
A67: 365 | B67: =B55+1 -> 5 | E67: =IF(C67="","",IF(SUM(E$19:E66)+($F$4/(1+$J$6)/$F$9)-1>$F$4/(1+$J$6),"",$F$4/(1+$J$6)/$F$9)) ->  | F67: =IF(OR(SUM(F$19:F66)=$H$17,$H66=""),"",IF($F$8=$A$9,$H$17/$F$6,-PMT($J$17/12,$F$6,$H$17,0,0)-G67)) ->  | G67: =IF(OR(SUM(F$19:F66)=$H$17,$H66=""),"",$H66*$J$17/12) ->  | K67: =IF($J66=0,MIN(K$18:K66),$F$9-$C66) -> 
A68: 365 | B68: 5 | D68: =IF(OR(C67="",E68=""),"",D67-E67) ->  | E68: =IF(C68="","",IF(SUM(E$19:E67)+($F$4/(1+$J$6)/$F$9)-1>$F$4/(1+$J$6),"",$F$4/(1+$J$6)/$F$9)) ->  | F68: =IF(OR(SUM(F$19:F67)=$H$17,$H67=""),"",IF($F$8=$A$9,$H$17/$F$6,-PMT($J$17/12,$F$6,$H$17,0,0)-G68)) ->  | G68: =IF(OR(SUM(F$19:F67)=$H$17,$H67=""),"",$H67*$J$17/12) ->  | K68: =IF($J67=0,MIN(K$18:K67),$F$9-$C67) -> 
A69: 365 | B69: 5 | E69: =IF(C69="","",IF(SUM(E$19:E68)+($F$4/(1+$J$6)/$F$9)-1>$F$4/(1+$J$6),"",$F$4/(1+$J$6)/$F$9)) ->  | F69: =IF(OR(SUM(F$19:F68)=$H$17,$H68=""),"",IF($F$8=$A$9,$H$17/$F$6,-PMT($J$17/12,$F$6,$H$17,0,0)-G69)) ->  | G69: =IF(OR(SUM(F$19:F68)=$H$17,$H68=""),"",$H68*$J$17/12) ->  | K69: =IF($J68=0,MIN(K$18:K68),$F$9-$C68) -> 
A70: 365 | B70: 5 | E70: =IF(C70="","",IF(SUM(E$19:E69)+($F$4/(1+$J$6)/$F$9)-1>$F$4/(1+$J$6),"",$F$4/(1+$J$6)/$F$9)) ->  | F70: =IF(OR(SUM(F$19:F69)=$H$17,$H69=""),"",IF($F$8=$A$9,$H$17/$F$6,-PMT($J$17/12,$F$6,$H$17,0,0)-G70)) ->  | G70: =IF(OR(SUM(F$19:F69)=$H$17,$H69=""),"",$H69*$J$17/12) ->  | K70: =IF($J69=0,MIN(K$18:K69),$F$9-$C69) -> 
A71: 365 | B71: 5 | E71: =IF(C71="","",IF(SUM(E$19:E70)+($F$4/(1+$J$6)/$F$9)-1>$F$4/(1+$J$6),"",$F$4/(1+$J$6)/$F$9)) ->  | F71: =IF(OR(SUM(F$19:F70)=$H$17,$H70=""),"",IF($F$8=$A$9,$H$17/$F$6,-PMT($J$17/12,$F$6,$H$17,0,0)-G71)) ->  | G71: =IF(OR(SUM(F$19:F70)=$H$17,$H70=""),"",$H70*$J$17/12) ->  | K71: =IF($J70=0,MIN(K$18:K70),$F$9-$C70) -> 
A72: 365 | B72: 5 | E72: =IF(C72="","",IF(SUM(E$19:E71)+($F$4/(1+$J$6)/$F$9)-1>$F$4/(1+$J$6),"",$F$4/(1+$J$6)/$F$9)) ->  | F72: =IF(OR(SUM(F$19:F71)=$H$17,$H71=""),"",IF($F$8=$A$9,$H$17/$F$6,-PMT($J$17/12,$F$6,$H$17,0,0)-G72)) ->  | G72: =IF(OR(SUM(F$19:F71)=$H$17,$H71=""),"",$H71*$J$17/12) ->  | K72: =IF($J71=0,MIN(K$18:K71),$F$9-$C71) -> 
A73: 365 | B73: 5 | E73: =IF(C73="","",IF(SUM(E$19:E72)+($F$4/(1+$J$6)/$F$9)-1>$F$4/(1+$J$6),"",$F$4/(1+$J$6)/$F$9)) ->  | F73: =IF(OR(SUM(F$19:F72)=$H$17,$H72=""),"",IF($F$8=$A$9,$H$17/$F$6,-PMT($J$17/12,$F$6,$H$17,0,0)-G73)) ->  | G73: =IF(OR(SUM(F$19:F72)=$H$17,$H72=""),"",$H72*$J$17/12) ->  | K73: =IF($J72=0,MIN(K$18:K72),$F$9-$C72) -> 
A74: 365 | B74: 5 | E74: =IF(C74="","",IF(SUM(E$19:E73)+($F$4/(1+$J$6)/$F$9)-1>$F$4/(1+$J$6),"",$F$4/(1+$J$6)/$F$9)) ->  | F74: =IF(OR(SUM(F$19:F73)=$H$17,$H73=""),"",IF($F$8=$A$9,$H$17/$F$6,-PMT($J$17/12,$F$6,$H$17,0,0)-G74)) ->  | G74: =IF(OR(SUM(F$19:F73)=$H$17,$H73=""),"",$H73*$J$17/12) ->  | K74: =IF($J73=0,MIN(K$18:K73),$F$9-$C73) -> 
A75: 365 | B75: 5 | E75: =IF(C75="","",IF(SUM(E$19:E74)+($F$4/(1+$J$6)/$F$9)-1>$F$4/(1+$J$6),"",$F$4/(1+$J$6)/$F$9)) ->  | F75: =IF(OR(SUM(F$19:F74)=$H$17,$H74=""),"",IF($F$8=$A$9,$H$17/$F$6,-PMT($J$17/12,$F$6,$H$17,0,0)-G75)) ->  | G75: =IF(OR(SUM(F$19:F74)=$H$17,$H74=""),"",$H74*$J$17/12) ->  | K75: =IF($J74=0,MIN(K$18:K74),$F$9-$C74) -> 
A76: 365 | B76: 5 | E76: =IF(C76="","",IF(SUM(E$19:E75)+($F$4/(1+$J$6)/$F$9)-1>$F$4/(1+$J$6),"",$F$4/(1+$J$6)/$F$9)) ->  | F76: =IF(OR(SUM(F$19:F75)=$H$17,$H75=""),"",IF($F$8=$A$9,$H$17/$F$6,-PMT($J$17/12,$F$6,$H$17,0,0)-G76)) ->  | G76: =IF(OR(SUM(F$19:F75)=$H$17,$H75=""),"",$H75*$J$17/12) ->  | K76: =IF($J75=0,MIN(K$18:K75),$F$9-$C75) -> 
A77: 365 | B77: 5 | E77: =IF(C77="","",IF(SUM(E$19:E76)+($F$4/(1+$J$6)/$F$9)-1>$F$4/(1+$J$6),"",$F$4/(1+$J$6)/$F$9)) ->  | F77: =IF(OR(SUM(F$19:F76)=$H$17,$H76=""),"",IF($F$8=$A$9,$H$17/$F$6,-PMT($J$17/12,$F$6,$H$17,0,0)-G77)) ->  | G77: =IF(OR(SUM(F$19:F76)=$H$17,$H76=""),"",$H76*$J$17/12) ->  | K77: =IF($J76=0,MIN(K$18:K76),$F$9-$C76) -> 
A78: 365 | B78: 5 | E78: =IF(C78="","",IF(SUM(E$19:E77)+($F$4/(1+$J$6)/$F$9)-1>$F$4/(1+$J$6),"",$F$4/(1+$J$6)/$F$9)) ->  | F78: =IF(OR(SUM(F$19:F77)=$H$17,$H77=""),"",IF($F$8=$A$9,$H$17/$F$6,-PMT($J$17/12,$F$6,$H$17,0,0)-G78)) ->  | G78: =IF(OR(SUM(F$19:F77)=$H$17,$H77=""),"",$H77*$J$17/12) ->  | I78: =IF(OR(D78="",E78=""),0,IF($H$4=$A$4,(D78+D67)*50%*$J$8+$J$9,$J$9)) -> 0 | K78: =IF($J77=0,MIN(K$18:K77),$F$9-$C77) -> 
A79: 365 | B79: =B67+1 -> 6 | E79: =IF(C79="","",IF(SUM(E$19:E78)+($F$4/(1+$J$6)/$F$9)-1>$F$4/(1+$J$6),"",$F$4/(1+$J$6)/$F$9)) ->  | F79: =IF(OR(SUM(F$19:F78)=$H$17,$H78=""),"",IF($F$8=$A$9,$H$17/$F$6,-PMT($J$17/12,$F$6,$H$17,0,0)-G79)) ->  | G79: =IF(OR(SUM(F$19:F78)=$H$17,$H78=""),"",$H78*$J$17/12) ->  | K79: =IF($J78=0,MIN(K$18:K78),$F$9-$C78) -> 
A80: 365 | B80: 6 | E80: =IF(C80="","",IF(SUM(E$19:E79)+($F$4/(1+$J$6)/$F$9)-1>$F$4/(1+$J$6),"",$F$4/(1+$J$6)/$F$9)) ->  | F80: =IF(OR(SUM(F$19:F79)=$H$17,$H79=""),"",IF($F$8=$A$9,$H$17/$F$6,-PMT($J$17/12,$F$6,$H$17,0,0)-G80)) ->  | G80: =IF(OR(SUM(F$19:F79)=$H$17,$H79=""),"",$H79*$J$17/12) ->  | K80: =IF($J79=0,MIN(K$18:K79),$F$9-$C79) -> 
A81: 365 | B81: 6 | E81: =IF(C81="","",IF(SUM(E$19:E80)+($F$4/(1+$J$6)/$F$9)-1>$F$4/(1+$J$6),"",$F$4/(1+$J$6)/$F$9)) ->  | F81: =IF(OR(SUM(F$19:F80)=$H$17,$H80=""),"",IF($F$8=$A$9,$H$17/$F$6,-PMT($J$17/12,$F$6,$H$17,0,0)-G81)) ->  | G81: =IF(OR(SUM(F$19:F80)=$H$17,$H80=""),"",$H80*$J$17/12) ->  | K81: =IF($J80=0,MIN(K$18:K80),$F$9-$C80) -> 
A82: 365 | B82: 6 | E82: =IF(C82="","",IF(SUM(E$19:E81)+($F$4/(1+$J$6)/$F$9)-1>$F$4/(1+$J$6),"",$F$4/(1+$J$6)/$F$9)) ->  | F82: =IF(OR(SUM(F$19:F81)=$H$17,$H81=""),"",IF($F$8=$A$9,$H$17/$F$6,-PMT($J$17/12,$F$6,$H$17,0,0)-G82)) ->  | G82: =IF(OR(SUM(F$19:F81)=$H$17,$H81=""),"",$H81*$J$17/12) ->  | K82: =IF($J81=0,MIN(K$18:K81),$F$9-$C81) -> 
A83: 365 | B83: 6 | E83: =IF(C83="","",IF(SUM(E$19:E82)+($F$4/(1+$J$6)/$F$9)-1>$F$4/(1+$J$6),"",$F$4/(1+$J$6)/$F$9)) ->  | F83: =IF(OR(SUM(F$19:F82)=$H$17,$H82=""),"",IF($F$8=$A$9,$H$17/$F$6,-PMT($J$17/12,$F$6,$H$17,0,0)-G83)) ->  | G83: =IF(OR(SUM(F$19:F82)=$H$17,$H82=""),"",$H82*$J$17/12) ->  | J83: =IF($C83="","",(IF(E83="",0,E83)+G83+I83)*IF($H$4=$A$4,$J$5,$J$7)) ->  | K83: =IF($J82=0,MIN(K$18:K82),$F$9-$C82) -> 
A84: 365 | B84: 6 | E84: =IF(C84="","",IF(SUM(E$19:E83)+($F$4/(1+$J$6)/$F$9)-1>$F$4/(1+$J$6),"",$F$4/(1+$J$6)/$F$9)) ->  | F84: =IF(OR(SUM(F$19:F83)=$H$17,$H83=""),"",IF($F$8=$A$9,$H$17/$F$6,-PMT($J$17/12,$F$6,$H$17,0,0)-G84)) ->  | G84: =IF(OR(SUM(F$19:F83)=$H$17,$H83=""),"",$H83*$J$17/12) ->  | H84: =IFERROR($H83-F84,"") ->  | K84: =IF($J83=0,MIN(K$18:K83),$F$9-$C83) -> 
A85: 365 | B85: 6 | C85: =IFERROR(IF(C84+1<=$F$6,C84+1,""),"") ->  | E85: =IF(C85="","",IF(SUM(E$19:E84)+($F$4/(1+$J$6)/$F$9)-1>$F$4/(1+$J$6),"",$F$4/(1+$J$6)/$F$9)) ->  | F85: =IF(OR(SUM(F$19:F84)=$H$17,$H84=""),"",IF($F$8=$A$9,$H$17/$F$6,-PMT($J$17/12,$F$6,$H$17,0,0)-G85)) ->  | G85: =IF(OR(SUM(F$19:F84)=$H$17,$H84=""),"",$H84*$J$17/12) ->  | K85: =IF($J84=0,MIN(K$18:K84),$F$9-$C84) -> 
A86: 365 | B86: 6 | E86: =IF(C86="","",IF(SUM(E$19:E85)+($F$4/(1+$J$6)/$F$9)-1>$F$4/(1+$J$6),"",$F$4/(1+$J$6)/$F$9)) ->  | F86: =IF(OR(SUM(F$19:F85)=$H$17,$H85=""),"",IF($F$8=$A$9,$H$17/$F$6,-PMT($J$17/12,$F$6,$H$17,0,0)-G86)) ->  | G86: =IF(OR(SUM(F$19:F85)=$H$17,$H85=""),"",$H85*$J$17/12) ->  | K86: =IF($J85=0,MIN(K$18:K85),$F$9-$C85) -> 
A87: 365 | B87: 6 | E87: =IF(C87="","",IF(SUM(E$19:E86)+($F$4/(1+$J$6)/$F$9)-1>$F$4/(1+$J$6),"",$F$4/(1+$J$6)/$F$9)) ->  | F87: =IF(OR(SUM(F$19:F86)=$H$17,$H86=""),"",IF($F$8=$A$9,$H$17/$F$6,-PMT($J$17/12,$F$6,$H$17,0,0)-G87)) ->  | G87: =IF(OR(SUM(F$19:F86)=$H$17,$H86=""),"",$H86*$J$17/12) ->  | K87: =IF($J86=0,MIN(K$18:K86),$F$9-$C86) -> 
A88: 365 | B88: 6 | E88: =IF(C88="","",IF(SUM(E$19:E87)+($F$4/(1+$J$6)/$F$9)-1>$F$4/(1+$J$6),"",$F$4/(1+$J$6)/$F$9)) ->  | F88: =IF(OR(SUM(F$19:F87)=$H$17,$H87=""),"",IF($F$8=$A$9,$H$17/$F$6,-PMT($J$17/12,$F$6,$H$17,0,0)-G88)) ->  | G88: =IF(OR(SUM(F$19:F87)=$H$17,$H87=""),"",$H87*$J$17/12) ->  | K88: =IF($J87=0,MIN(K$18:K87),$F$9-$C87) -> 
A89: 365 | B89: 6 | E89: =IF(C89="","",IF(SUM(E$19:E88)+($F$4/(1+$J$6)/$F$9)-1>$F$4/(1+$J$6),"",$F$4/(1+$J$6)/$F$9)) ->  | F89: =IF(OR(SUM(F$19:F88)=$H$17,$H88=""),"",IF($F$8=$A$9,$H$17/$F$6,-PMT($J$17/12,$F$6,$H$17,0,0)-G89)) ->  | G89: =IF(OR(SUM(F$19:F88)=$H$17,$H88=""),"",$H88*$J$17/12) ->  | K89: =IF($J88=0,MIN(K$18:K88),$F$9-$C88) -> 
A90: 365 | B90: 6 | E90: =IF(C90="","",IF(SUM(E$19:E89)+($F$4/(1+$J$6)/$F$9)-1>$F$4/(1+$J$6),"",$F$4/(1+$J$6)/$F$9)) ->  | F90: =IF(OR(SUM(F$19:F89)=$H$17,$H89=""),"",IF($F$8=$A$9,$H$17/$F$6,-PMT($J$17/12,$F$6,$H$17,0,0)-G90)) ->  | G90: =IF(OR(SUM(F$19:F89)=$H$17,$H89=""),"",$H89*$J$17/12) ->  | I90: =IF(OR(D90="",E90=""),0,IF($H$4=$A$4,(D90+D79)*50%*$J$8+$J$9,$J$9)) -> 0 | K90: =IF($J89=0,MIN(K$18:K89),$F$9-$C89) -> 
A91: 365 | B91: =B79+1 -> 7 | E91: =IF(C91="","",IF(SUM(E$19:E90)+($F$4/(1+$J$6)/$F$9)-1>$F$4/(1+$J$6),"",$F$4/(1+$J$6)/$F$9)) ->  | F91: =IF(OR(SUM(F$19:F90)=$H$17,$H90=""),"",IF($F$8=$A$9,$H$17/$F$6,-PMT($J$17/12,$F$6,$H$17,0,0)-G91)) ->  | G91: =IF(OR(SUM(F$19:F90)=$H$17,$H90=""),"",$H90*$J$17/12) ->  | K91: =IF($J90=0,MIN(K$18:K90),$F$9-$C90) -> 
A92: 365 | B92: 7 | E92: =IF(C92="","",IF(SUM(E$19:E91)+($F$4/(1+$J$6)/$F$9)-1>$F$4/(1+$J$6),"",$F$4/(1+$J$6)/$F$9)) ->  | F92: =IF(OR(SUM(F$19:F91)=$H$17,$H91=""),"",IF($F$8=$A$9,$H$17/$F$6,-PMT($J$17/12,$F$6,$H$17,0,0)-G92)) ->  | G92: =IF(OR(SUM(F$19:F91)=$H$17,$H91=""),"",$H91*$J$17/12) ->  | K92: =IF($J91=0,MIN(K$18:K91),$F$9-$C91) -> 
A93: 365 | B93: 7 | E93: =IF(C93="","",IF(SUM(E$19:E92)+($F$4/(1+$J$6)/$F$9)-1>$F$4/(1+$J$6),"",$F$4/(1+$J$6)/$F$9)) ->  | F93: =IF(OR(SUM(F$19:F92)=$H$17,$H92=""),"",IF($F$8=$A$9,$H$17/$F$6,-PMT($J$17/12,$F$6,$H$17,0,0)-G93)) ->  | G93: =IF(OR(SUM(F$19:F92)=$H$17,$H92=""),"",$H92*$J$17/12) ->  | K93: =IF($J92=0,MIN(K$18:K92),$F$9-$C92) -> 
A94: 365 | B94: 7 | E94: =IF(C94="","",IF(SUM(E$19:E93)+($F$4/(1+$J$6)/$F$9)-1>$F$4/(1+$J$6),"",$F$4/(1+$J$6)/$F$9)) ->  | F94: =IF(OR(SUM(F$19:F93)=$H$17,$H93=""),"",IF($F$8=$A$9,$H$17/$F$6,-PMT($J$17/12,$F$6,$H$17,0,0)-G94)) ->  | G94: =IF(OR(SUM(F$19:F93)=$H$17,$H93=""),"",$H93*$J$17/12) ->  | K94: =IF($J93=0,MIN(K$18:K93),$F$9-$C93) -> 
A95: 365 | B95: 7 | E95: =IF(C95="","",IF(SUM(E$19:E94)+($F$4/(1+$J$6)/$F$9)-1>$F$4/(1+$J$6),"",$F$4/(1+$J$6)/$F$9)) ->  | F95: =IF(OR(SUM(F$19:F94)=$H$17,$H94=""),"",IF($F$8=$A$9,$H$17/$F$6,-PMT($J$17/12,$F$6,$H$17,0,0)-G95)) ->  | G95: =IF(OR(SUM(F$19:F94)=$H$17,$H94=""),"",$H94*$J$17/12) ->  | K95: =IF($J94=0,MIN(K$18:K94),$F$9-$C94) -> 
A96: 365 | B96: 7 | E96: =IF(C96="","",IF(SUM(E$19:E95)+($F$4/(1+$J$6)/$F$9)-1>$F$4/(1+$J$6),"",$F$4/(1+$J$6)/$F$9)) ->  | F96: =IF(OR(SUM(F$19:F95)=$H$17,$H95=""),"",IF($F$8=$A$9,$H$17/$F$6,-PMT($J$17/12,$F$6,$H$17,0,0)-G96)) ->  | G96: =IF(OR(SUM(F$19:F95)=$H$17,$H95=""),"",$H95*$J$17/12) ->  | K96: =IF($J95=0,MIN(K$18:K95),$F$9-$C95) -> 
A97: 365 | B97: =B85+1 -> 7 | E97: =IF(C97="","",IF(SUM(E$19:E96)+($F$4/(1+$J$6)/$F$9)-1>$F$4/(1+$J$6),"",$F$4/(1+$J$6)/$F$9)) ->  | F97: =IF(OR(SUM(F$19:F96)=$H$17,$H96=""),"",IF($F$8=$A$9,$H$17/$F$6,-PMT($J$17/12,$F$6,$H$17,0,0)-G97)) ->  | G97: =IF(OR(SUM(F$19:F96)=$H$17,$H96=""),"",$H96*$J$17/12) ->  | K97: =IF($J96=0,MIN(K$18:K96),$F$9-$C96) -> 
A98: 365 | B98: 7 | E98: =IF(C98="","",IF(SUM(E$19:E97)+($F$4/(1+$J$6)/$F$9)-1>$F$4/(1+$J$6),"",$F$4/(1+$J$6)/$F$9)) ->  | F98: =IF(OR(SUM(F$19:F97)=$H$17,$H97=""),"",IF($F$8=$A$9,$H$17/$F$6,-PMT($J$17/12,$F$6,$H$17,0,0)-G98)) ->  | G98: =IF(OR(SUM(F$19:F97)=$H$17,$H97=""),"",$H97*$J$17/12) ->  | K98: =IF($J97=0,MIN(K$18:K97),$F$9-$C97) -> 
A99: 365 | B99: 7 | E99: =IF(C99="","",IF(SUM(E$19:E98)+($F$4/(1+$J$6)/$F$9)-1>$F$4/(1+$J$6),"",$F$4/(1+$J$6)/$F$9)) ->  | F99: =IF(OR(SUM(F$19:F98)=$H$17,$H98=""),"",IF($F$8=$A$9,$H$17/$F$6,-PMT($J$17/12,$F$6,$H$17,0,0)-G99)) ->  | G99: =IF(OR(SUM(F$19:F98)=$H$17,$H98=""),"",$H98*$J$17/12) ->  | K99: =IF($J98=0,MIN(K$18:K98),$F$9-$C98) -> 
A100: 365 | B100: 7 | E100: =IF(C100="","",IF(SUM(E$19:E99)+($F$4/(1+$J$6)/$F$9)-1>$F$4/(1+$J$6),"",$F$4/(1+$J$6)/$F$9)) ->  | F100: =IF(OR(SUM(F$19:F99)=$H$17,$H99=""),"",IF($F$8=$A$9,$H$17/$F$6,-PMT($J$17/12,$F$6,$H$17,0,0)-G100)) ->  | G100: =IF(OR(SUM(F$19:F99)=$H$17,$H99=""),"",$H99*$J$17/12) ->  | K100: =IF($J99=0,MIN(K$18:K99),$F$9-$C99) -> 
A101: 365 | B101: 7 | E101: =IF(C101="","",IF(SUM(E$19:E100)+($F$4/(1+$J$6)/$F$9)-1>$F$4/(1+$J$6),"",$F$4/(1+$J$6)/$F$9)) ->  | F101: =IF(OR(SUM(F$19:F100)=$H$17,$H100=""),"",IF($F$8=$A$9,$H$17/$F$6,-PMT($J$17/12,$F$6,$H$17,0,0)-G101)) ->  | G101: =IF(OR(SUM(F$19:F100)=$H$17,$H100=""),"",$H100*$J$17/12) ->  | K101: =IF($J100=0,MIN(K$18:K100),$F$9-$C100) -> 
A102: 365 | B102: 7 | E102: =IF(C102="","",IF(SUM(E$19:E101)+($F$4/(1+$J$6)/$F$9)-1>$F$4/(1+$J$6),"",$F$4/(1+$J$6)/$F$9)) ->  | F102: =IF(OR(SUM(F$19:F101)=$H$17,$H101=""),"",IF($F$8=$A$9,$H$17/$F$6,-PMT($J$17/12,$F$6,$H$17,0,0)-G102)) ->  | G102: =IF(OR(SUM(F$19:F101)=$H$17,$H101=""),"",$H101*$J$17/12) ->  | I102: =IF(OR(D102="",E102=""),0,IF($H$4=$A$4,(D102+D91)*50%*$J$8+$J$9,$J$9)) -> 0 | K102: =IF($J101=0,MIN(K$18:K101),$F$9-$C101) -> 
A103: 365 | B103: =B91+1 -> 8 | E103: =IF(C103="","",IF(SUM(E$19:E102)+($F$4/(1+$J$6)/$F$9)-1>$F$4/(1+$J$6),"",$F$4/(1+$J$6)/$F$9)) ->  | F103: =IF(OR(SUM(F$19:F102)=$H$17,$H102=""),"",IF($F$8=$A$9,$H$17/$F$6,-PMT($J$17/12,$F$6,$H$17,0,0)-G103)) ->  | G103: =IF(OR(SUM(F$19:F102)=$H$17,$H102=""),"",$H102*$J$17/12) ->  | K103: =IF($J102=0,MIN(K$18:K102),$F$9-$C102) -> 
A104: 365 | B104: =B92+1 -> 8 | E104: =IF(C104="","",IF(SUM(E$19:E103)+($F$4/(1+$J$6)/$F$9)-1>$F$4/(1+$J$6),"",$F$4/(1+$J$6)/$F$9)) ->  | F104: =IF(OR(SUM(F$19:F103)=$H$17,$H103=""),"",IF($F$8=$A$9,$H$17/$F$6,-PMT($J$17/12,$F$6,$H$17,0,0)-G104)) ->  | G104: =IF(OR(SUM(F$19:F103)=$H$17,$H103=""),"",$H103*$J$17/12) ->  | K104: =IF($J103=0,MIN(K$18:K103),$F$9-$C103) -> 
A105: 365 | B105: 8 | E105: =IF(C105="","",IF(SUM(E$19:E104)+($F$4/(1+$J$6)/$F$9)-1>$F$4/(1+$J$6),"",$F$4/(1+$J$6)/$F$9)) ->  | F105: =IF(OR(SUM(F$19:F104)=$H$17,$H104=""),"",IF($F$8=$A$9,$H$17/$F$6,-PMT($J$17/12,$F$6,$H$17,0,0)-G105)) ->  | G105: =IF(OR(SUM(F$19:F104)=$H$17,$H104=""),"",$H104*$J$17/12) ->  | K105: =IF($J104=0,MIN(K$18:K104),$F$9-$C104) -> 
A106: 365 | B106: 8 | E106: =IF(C106="","",IF(SUM(E$19:E105)+($F$4/(1+$J$6)/$F$9)-1>$F$4/(1+$J$6),"",$F$4/(1+$J$6)/$F$9)) ->  | F106: =IF(OR(SUM(F$19:F105)=$H$17,$H105=""),"",IF($F$8=$A$9,$H$17/$F$6,-PMT($J$17/12,$F$6,$H$17,0,0)-G106)) ->  | G106: =IF(OR(SUM(F$19:F105)=$H$17,$H105=""),"",$H105*$J$17/12) ->  | K106: =IF($J105=0,MIN(K$18:K105),$F$9-$C105) -> 
A107: 365 | B107: 8 | E107: =IF(C107="","",IF(SUM(E$19:E106)+($F$4/(1+$J$6)/$F$9)-1>$F$4/(1+$J$6),"",$F$4/(1+$J$6)/$F$9)) ->  | F107: =IF(OR(SUM(F$19:F106)=$H$17,$H106=""),"",IF($F$8=$A$9,$H$17/$F$6,-PMT($J$17/12,$F$6,$H$17,0,0)-G107)) ->  | G107: =IF(OR(SUM(F$19:F106)=$H$17,$H106=""),"",$H106*$J$17/12) ->  | K107: =IF($J106=0,MIN(K$18:K106),$F$9-$C106) -> 
A108: 365 | B108: 8 | E108: =IF(C108="","",IF(SUM(E$19:E107)+($F$4/(1+$J$6)/$F$9)-1>$F$4/(1+$J$6),"",$F$4/(1+$J$6)/$F$9)) ->  | F108: =IF(OR(SUM(F$19:F107)=$H$17,$H107=""),"",IF($F$8=$A$9,$H$17/$F$6,-PMT($J$17/12,$F$6,$H$17,0,0)-G108)) ->  | G108: =IF(OR(SUM(F$19:F107)=$H$17,$H107=""),"",$H107*$J$17/12) ->  | K108: =IF($J107=0,MIN(K$18:K107),$F$9-$C107) -> 
A109: 365 | B109: 8 | E109: =IF(C109="","",IF(SUM(E$19:E108)+($F$4/(1+$J$6)/$F$9)-1>$F$4/(1+$J$6),"",$F$4/(1+$J$6)/$F$9)) ->  | F109: =IF(OR(SUM(F$19:F108)=$H$17,$H108=""),"",IF($F$8=$A$9,$H$17/$F$6,-PMT($J$17/12,$F$6,$H$17,0,0)-G109)) ->  | G109: =IF(OR(SUM(F$19:F108)=$H$17,$H108=""),"",$H108*$J$17/12) ->  | K109: =IF($J108=0,MIN(K$18:K108),$F$9-$C108) -> 
A110: 365 | B110: 8 | E110: =IF(C110="","",IF(SUM(E$19:E109)+($F$4/(1+$J$6)/$F$9)-1>$F$4/(1+$J$6),"",$F$4/(1+$J$6)/$F$9)) ->  | F110: =IF(OR(SUM(F$19:F109)=$H$17,$H109=""),"",IF($F$8=$A$9,$H$17/$F$6,-PMT($J$17/12,$F$6,$H$17,0,0)-G110)) ->  | G110: =IF(OR(SUM(F$19:F109)=$H$17,$H109=""),"",$H109*$J$17/12) ->  | K110: =IF($J109=0,MIN(K$18:K109),$F$9-$C109) -> 
A111: 365 | B111: 8 | E111: =IF(C111="","",IF(SUM(E$19:E110)+($F$4/(1+$J$6)/$F$9)-1>$F$4/(1+$J$6),"",$F$4/(1+$J$6)/$F$9)) ->  | F111: =IF(OR(SUM(F$19:F110)=$H$17,$H110=""),"",IF($F$8=$A$9,$H$17/$F$6,-PMT($J$17/12,$F$6,$H$17,0,0)-G111)) ->  | G111: =IF(OR(SUM(F$19:F110)=$H$17,$H110=""),"",$H110*$J$17/12) ->  | K111: =IF($J110=0,MIN(K$18:K110),$F$9-$C110) -> 
A112: 365 | B112: 8 | E112: =IF(C112="","",IF(SUM(E$19:E111)+($F$4/(1+$J$6)/$F$9)-1>$F$4/(1+$J$6),"",$F$4/(1+$J$6)/$F$9)) ->  | F112: =IF(OR(SUM(F$19:F111)=$H$17,$H111=""),"",IF($F$8=$A$9,$H$17/$F$6,-PMT($J$17/12,$F$6,$H$17,0,0)-G112)) ->  | G112: =IF(OR(SUM(F$19:F111)=$H$17,$H111=""),"",$H111*$J$17/12) ->  | K112: =IF($J111=0,MIN(K$18:K111),$F$9-$C111) -> 
A113: 365 | B113: 8 | E113: =IF(C113="","",IF(SUM(E$19:E112)+($F$4/(1+$J$6)/$F$9)-1>$F$4/(1+$J$6),"",$F$4/(1+$J$6)/$F$9)) ->  | F113: =IF(OR(SUM(F$19:F112)=$H$17,$H112=""),"",IF($F$8=$A$9,$H$17/$F$6,-PMT($J$17/12,$F$6,$H$17,0,0)-G113)) ->  | G113: =IF(OR(SUM(F$19:F112)=$H$17,$H112=""),"",$H112*$J$17/12) ->  | K113: =IF($J112=0,MIN(K$18:K112),$F$9-$C112) -> 
A114: 365 | B114: 8 | E114: =IF(C114="","",IF(SUM(E$19:E113)+($F$4/(1+$J$6)/$F$9)-1>$F$4/(1+$J$6),"",$F$4/(1+$J$6)/$F$9)) ->  | F114: =IF(OR(SUM(F$19:F113)=$H$17,$H113=""),"",IF($F$8=$A$9,$H$17/$F$6,-PMT($J$17/12,$F$6,$H$17,0,0)-G114)) ->  | G114: =IF(OR(SUM(F$19:F113)=$H$17,$H113=""),"",$H113*$J$17/12) ->  | I114: =IF(OR(D114="",E114=""),0,IF($H$4=$A$4,(D114+D103)*50%*$J$8+$J$9,$J$9)) -> 0 | K114: =IF($J113=0,MIN(K$18:K113),$F$9-$C113) -> 
A115: 365 | B115: =B103+1 -> 9 | E115: =IF(C115="","",IF(SUM(E$19:E114)+($F$4/(1+$J$6)/$F$9)-1>$F$4/(1+$J$6),"",$F$4/(1+$J$6)/$F$9)) ->  | F115: =IF(OR(SUM(F$19:F114)=$H$17,$H114=""),"",IF($F$8=$A$9,$H$17/$F$6,-PMT($J$17/12,$F$6,$H$17,0,0)-G115)) ->  | G115: =IF(OR(SUM(F$19:F114)=$H$17,$H114=""),"",$H114*$J$17/12) ->  | K115: =IF($J114=0,MIN(K$18:K114),$F$9-$C114) -> 
A116: 365 | B116: =B104+1 -> 9 | E116: =IF(C116="","",IF(SUM(E$19:E115)+($F$4/(1+$J$6)/$F$9)-1>$F$4/(1+$J$6),"",$F$4/(1+$J$6)/$F$9)) ->  | F116: =IF(OR(SUM(F$19:F115)=$H$17,$H115=""),"",IF($F$8=$A$9,$H$17/$F$6,-PMT($J$17/12,$F$6,$H$17,0,0)-G116)) ->  | G116: =IF(OR(SUM(F$19:F115)=$H$17,$H115=""),"",$H115*$J$17/12) ->  | H116: =IFERROR($H115-F116,"") ->  | K116: =IF($J115=0,MIN(K$18:K115),$F$9-$C115) -> 
A117: 365 | B117: 9 | E117: =IF(C117="","",IF(SUM(E$19:E116)+($F$4/(1+$J$6)/$F$9)-1>$F$4/(1+$J$6),"",$F$4/(1+$J$6)/$F$9)) ->  | F117: =IF(OR(SUM(F$19:F116)=$H$17,$H116=""),"",IF($F$8=$A$9,$H$17/$F$6,-PMT($J$17/12,$F$6,$H$17,0,0)-G117)) ->  | G117: =IF(OR(SUM(F$19:F116)=$H$17,$H116=""),"",$H116*$J$17/12) ->  | K117: =IF($J116=0,MIN(K$18:K116),$F$9-$C116) -> 
A118: 365 | B118: 9 | E118: =IF(C118="","",IF(SUM(E$19:E117)+($F$4/(1+$J$6)/$F$9)-1>$F$4/(1+$J$6),"",$F$4/(1+$J$6)/$F$9)) ->  | F118: =IF(OR(SUM(F$19:F117)=$H$17,$H117=""),"",IF($F$8=$A$9,$H$17/$F$6,-PMT($J$17/12,$F$6,$H$17,0,0)-G118)) ->  | G118: =IF(OR(SUM(F$19:F117)=$H$17,$H117=""),"",$H117*$J$17/12) ->  | K118: =IF($J117=0,MIN(K$18:K117),$F$9-$C117) -> 
A119: 365 | B119: 9 | E119: =IF(C119="","",IF(SUM(E$19:E118)+($F$4/(1+$J$6)/$F$9)-1>$F$4/(1+$J$6),"",$F$4/(1+$J$6)/$F$9)) ->  | F119: =IF(OR(SUM(F$19:F118)=$H$17,$H118=""),"",IF($F$8=$A$9,$H$17/$F$6,-PMT($J$17/12,$F$6,$H$17,0,0)-G119)) ->  | G119: =IF(OR(SUM(F$19:F118)=$H$17,$H118=""),"",$H118*$J$17/12) ->  | K119: =IF($J118=0,MIN(K$18:K118),$F$9-$C118) -> 
A120: 365 | B120: 9 | E120: =IF(C120="","",IF(SUM(E$19:E119)+($F$4/(1+$J$6)/$F$9)-1>$F$4/(1+$J$6),"",$F$4/(1+$J$6)/$F$9)) ->  | F120: =IF(OR(SUM(F$19:F119)=$H$17,$H119=""),"",IF($F$8=$A$9,$H$17/$F$6,-PMT($J$17/12,$F$6,$H$17,0,0)-G120)) ->  | G120: =IF(OR(SUM(F$19:F119)=$H$17,$H119=""),"",$H119*$J$17/12) ->  | K120: =IF($J119=0,MIN(K$18:K119),$F$9-$C119) -> 
A121: 365 | B121: 9 | E121: =IF(C121="","",IF(SUM(E$19:E120)+($F$4/(1+$J$6)/$F$9)-1>$F$4/(1+$J$6),"",$F$4/(1+$J$6)/$F$9)) ->  | F121: =IF(OR(SUM(F$19:F120)=$H$17,$H120=""),"",IF($F$8=$A$9,$H$17/$F$6,-PMT($J$17/12,$F$6,$H$17,0,0)-G121)) ->  | G121: =IF(OR(SUM(F$19:F120)=$H$17,$H120=""),"",$H120*$J$17/12) ->  | K121: =IF($J120=0,MIN(K$18:K120),$F$9-$C120) -> 
A122: 365 | B122: 9 | E122: =IF(C122="","",IF(SUM(E$19:E121)+($F$4/(1+$J$6)/$F$9)-1>$F$4/(1+$J$6),"",$F$4/(1+$J$6)/$F$9)) ->  | F122: =IF(OR(SUM(F$19:F121)=$H$17,$H121=""),"",IF($F$8=$A$9,$H$17/$F$6,-PMT($J$17/12,$F$6,$H$17,0,0)-G122)) ->  | G122: =IF(OR(SUM(F$19:F121)=$H$17,$H121=""),"",$H121*$J$17/12) ->  | K122: =IF($J121=0,MIN(K$18:K121),$F$9-$C121) -> 
A123: 365 | B123: 9 | E123: =IF(C123="","",IF(SUM(E$19:E122)+($F$4/(1+$J$6)/$F$9)-1>$F$4/(1+$J$6),"",$F$4/(1+$J$6)/$F$9)) ->  | F123: =IF(OR(SUM(F$19:F122)=$H$17,$H122=""),"",IF($F$8=$A$9,$H$17/$F$6,-PMT($J$17/12,$F$6,$H$17,0,0)-G123)) ->  | G123: =IF(OR(SUM(F$19:F122)=$H$17,$H122=""),"",$H122*$J$17/12) ->  | K123: =IF($J122=0,MIN(K$18:K122),$F$9-$C122) -> 
A124: 365 | B124: 9 | E124: =IF(C124="","",IF(SUM(E$19:E123)+($F$4/(1+$J$6)/$F$9)-1>$F$4/(1+$J$6),"",$F$4/(1+$J$6)/$F$9)) ->  | F124: =IF(OR(SUM(F$19:F123)=$H$17,$H123=""),"",IF($F$8=$A$9,$H$17/$F$6,-PMT($J$17/12,$F$6,$H$17,0,0)-G124)) ->  | G124: =IF(OR(SUM(F$19:F123)=$H$17,$H123=""),"",$H123*$J$17/12) ->  | K124: =IF($J123=0,MIN(K$18:K123),$F$9-$C123) -> 
A125: 365 | B125: 9 | E125: =IF(C125="","",IF(SUM(E$19:E124)+($F$4/(1+$J$6)/$F$9)-1>$F$4/(1+$J$6),"",$F$4/(1+$J$6)/$F$9)) ->  | F125: =IF(OR(SUM(F$19:F124)=$H$17,$H124=""),"",IF($F$8=$A$9,$H$17/$F$6,-PMT($J$17/12,$F$6,$H$17,0,0)-G125)) ->  | G125: =IF(OR(SUM(F$19:F124)=$H$17,$H124=""),"",$H124*$J$17/12) ->  | K125: =IF($J124=0,MIN(K$18:K124),$F$9-$C124) -> 
A126: 365 | B126: 9 | E126: =IF(C126="","",IF(SUM(E$19:E125)+($F$4/(1+$J$6)/$F$9)-1>$F$4/(1+$J$6),"",$F$4/(1+$J$6)/$F$9)) ->  | F126: =IF(OR(SUM(F$19:F125)=$H$17,$H125=""),"",IF($F$8=$A$9,$H$17/$F$6,-PMT($J$17/12,$F$6,$H$17,0,0)-G126)) ->  | G126: =IF(OR(SUM(F$19:F125)=$H$17,$H125=""),"",$H125*$J$17/12) ->  | I126: =IF(OR(D126="",E126=""),0,IF($H$4=$A$4,(D126+D115)*50%*$J$8+$J$9,$J$9)) -> 0 | K126: =IF($J125=0,MIN(K$18:K125),$F$9-$C125) -> 
A127: 365 | B127: =B115+1 -> 10 | E127: =IF(C127="","",IF(SUM(E$19:E126)+($F$4/(1+$J$6)/$F$9)-1>$F$4/(1+$J$6),"",$F$4/(1+$J$6)/$F$9)) ->  | F127: =IF(OR(SUM(F$19:F126)=$H$17,$H126=""),"",IF($F$8=$A$9,$H$17/$F$6,-PMT($J$17/12,$F$6,$H$17,0,0)-G127)) ->  | G127: =IF(OR(SUM(F$19:F126)=$H$17,$H126=""),"",$H126*$J$17/12) ->  | K127: =IF($J126=0,MIN(K$18:K126),$F$9-$C126) -> 
A128: 365 | B128: =B116+1 -> 10 | E128: =IF(C128="","",IF(SUM(E$19:E127)+($F$4/(1+$J$6)/$F$9)-1>$F$4/(1+$J$6),"",$F$4/(1+$J$6)/$F$9)) ->  | F128: =IF(OR(SUM(F$19:F127)=$H$17,$H127=""),"",IF($F$8=$A$9,$H$17/$F$6,-PMT($J$17/12,$F$6,$H$17,0,0)-G128)) ->  | G128: =IF(OR(SUM(F$19:F127)=$H$17,$H127=""),"",$H127*$J$17/12) ->  | K128: =IF($J127=0,MIN(K$18:K127),$F$9-$C127) -> 
A129: 365 | B129: 10 | E129: =IF(C129="","",IF(SUM(E$19:E128)+($F$4/(1+$J$6)/$F$9)-1>$F$4/(1+$J$6),"",$F$4/(1+$J$6)/$F$9)) ->  | F129: =IF(OR(SUM(F$19:F128)=$H$17,$H128=""),"",IF($F$8=$A$9,$H$17/$F$6,-PMT($J$17/12,$F$6,$H$17,0,0)-G129)) ->  | G129: =IF(OR(SUM(F$19:F128)=$H$17,$H128=""),"",$H128*$J$17/12) ->  | K129: =IF($J128=0,MIN(K$18:K128),$F$9-$C128) -> 
A130: 365 | B130: 10 | E130: =IF(C130="","",IF(SUM(E$19:E129)+($F$4/(1+$J$6)/$F$9)-1>$F$4/(1+$J$6),"",$F$4/(1+$J$6)/$F$9)) ->  | F130: =IF(OR(SUM(F$19:F129)=$H$17,$H129=""),"",IF($F$8=$A$9,$H$17/$F$6,-PMT($J$17/12,$F$6,$H$17,0,0)-G130)) ->  | G130: =IF(OR(SUM(F$19:F129)=$H$17,$H129=""),"",$H129*$J$17/12) ->  | K130: =IF($J129=0,MIN(K$18:K129),$F$9-$C129) -> 
A131: 365 | B131: 10 | E131: =IF(C131="","",IF(SUM(E$19:E130)+($F$4/(1+$J$6)/$F$9)-1>$F$4/(1+$J$6),"",$F$4/(1+$J$6)/$F$9)) ->  | F131: =IF(OR(SUM(F$19:F130)=$H$17,$H130=""),"",IF($F$8=$A$9,$H$17/$F$6,-PMT($J$17/12,$F$6,$H$17,0,0)-G131)) ->  | G131: =IF(OR(SUM(F$19:F130)=$H$17,$H130=""),"",$H130*$J$17/12) ->  | K131: =IF($J130=0,MIN(K$18:K130),$F$9-$C130) -> 
A132: 365 | B132: 10 | D132: =IF(OR(C131="",E132=""),"",D131-E131) ->  | E132: =IF(C132="","",IF(SUM(E$19:E131)+($F$4/(1+$J$6)/$F$9)-1>$F$4/(1+$J$6),"",$F$4/(1+$J$6)/$F$9)) ->  | F132: =IF(OR(SUM(F$19:F131)=$H$17,$H131=""),"",IF($F$8=$A$9,$H$17/$F$6,-PMT($J$17/12,$F$6,$H$17,0,0)-G132)) ->  | G132: =IF(OR(SUM(F$19:F131)=$H$17,$H131=""),"",$H131*$J$17/12) ->  | K132: =IF($J131=0,MIN(K$18:K131),$F$9-$C131) -> 
A133: 365 | B133: 10 | E133: =IF(C133="","",IF(SUM(E$19:E132)+($F$4/(1+$J$6)/$F$9)-1>$F$4/(1+$J$6),"",$F$4/(1+$J$6)/$F$9)) ->  | F133: =IF(OR(SUM(F$19:F132)=$H$17,$H132=""),"",IF($F$8=$A$9,$H$17/$F$6,-PMT($J$17/12,$F$6,$H$17,0,0)-G133)) ->  | G133: =IF(OR(SUM(F$19:F132)=$H$17,$H132=""),"",$H132*$J$17/12) ->  | K133: =IF($J132=0,MIN(K$18:K132),$F$9-$C132) -> 
A134: 365 | B134: 10 | E134: =IF(C134="","",IF(SUM(E$19:E133)+($F$4/(1+$J$6)/$F$9)-1>$F$4/(1+$J$6),"",$F$4/(1+$J$6)/$F$9)) ->  | F134: =IF(OR(SUM(F$19:F133)=$H$17,$H133=""),"",IF($F$8=$A$9,$H$17/$F$6,-PMT($J$17/12,$F$6,$H$17,0,0)-G134)) ->  | G134: =IF(OR(SUM(F$19:F133)=$H$17,$H133=""),"",$H133*$J$17/12) ->  | K134: =IF($J133=0,MIN(K$18:K133),$F$9-$C133) -> 
A135: 365 | B135: 10 | E135: =IF(C135="","",IF(SUM(E$19:E134)+($F$4/(1+$J$6)/$F$9)-1>$F$4/(1+$J$6),"",$F$4/(1+$J$6)/$F$9)) ->  | F135: =IF(OR(SUM(F$19:F134)=$H$17,$H134=""),"",IF($F$8=$A$9,$H$17/$F$6,-PMT($J$17/12,$F$6,$H$17,0,0)-G135)) ->  | G135: =IF(OR(SUM(F$19:F134)=$H$17,$H134=""),"",$H134*$J$17/12) ->  | K135: =IF($J134=0,MIN(K$18:K134),$F$9-$C134) -> 
A136: 365 | B136: 10 | E136: =IF(C136="","",IF(SUM(E$19:E135)+($F$4/(1+$J$6)/$F$9)-1>$F$4/(1+$J$6),"",$F$4/(1+$J$6)/$F$9)) ->  | F136: =IF(OR(SUM(F$19:F135)=$H$17,$H135=""),"",IF($F$8=$A$9,$H$17/$F$6,-PMT($J$17/12,$F$6,$H$17,0,0)-G136)) ->  | G136: =IF(OR(SUM(F$19:F135)=$H$17,$H135=""),"",$H135*$J$17/12) ->  | K136: =IF($J135=0,MIN(K$18:K135),$F$9-$C135) -> 
A137: 365 | B137: 10 | E137: =IF(C137="","",IF(SUM(E$19:E136)+($F$4/(1+$J$6)/$F$9)-1>$F$4/(1+$J$6),"",$F$4/(1+$J$6)/$F$9)) ->  | F137: =IF(OR(SUM(F$19:F136)=$H$17,$H136=""),"",IF($F$8=$A$9,$H$17/$F$6,-PMT($J$17/12,$F$6,$H$17,0,0)-G137)) ->  | G137: =IF(OR(SUM(F$19:F136)=$H$17,$H136=""),"",$H136*$J$17/12) ->  | K137: =IF($J136=0,MIN(K$18:K136),$F$9-$C136) -> 
A138: 365 | B138: 10 | E138: =IF(C138="","",IF(SUM(E$19:E137)+($F$4/(1+$J$6)/$F$9)-1>$F$4/(1+$J$6),"",$F$4/(1+$J$6)/$F$9)) ->  | F138: =IF(OR(SUM(F$19:F137)=$H$17,$H137=""),"",IF($F$8=$A$9,$H$17/$F$6,-PMT($J$17/12,$F$6,$H$17,0,0)-G138)) ->  | G138: =IF(OR(SUM(F$19:F137)=$H$17,$H137=""),"",$H137*$J$17/12) ->  | I138: =IF(OR(D138="",E138=""),0,IF($H$4=$A$4,(D138+D127)*50%*$J$8+$J$9,$J$9)) -> 0 | K138: =IF($J137=0,MIN(K$18:K137),$F$9-$C137) -> 
C139: Итог | E139: =SUM(E19:E138) -> 3177966.102 | F139: =SUM(F19:F138) -> 4000000 | G139: =SUM(G19:G138) -> 1233333.333 | I139: =SUM(I19:I138) -> 177701.2712 | J139: =SUM(J19:J138) -> 917800.1412 | K139: =IF($J138=0,MIN(K$18:K138),$F$9-$C138) -> 
C140: Расчет для схемы лизинг: | K140: =IF($J139=0,MIN(K$18:K139),$F$9-$C139) -> 
C141: Собств. средства: | E141: =$F$4*$F$7+$F$5 -> 1100000 | F141: Заемные средства: | H141: =$F$4*(1-$F$7) -> 4000000 | I141: Ставка по лизингу, % | J141: =J17+3% -> 0.23 | K141: =IF($J140=0,MIN(K$18:K140),$F$9-$C140) -> 
A142: Осн.долг | B142: год | C142: № | D142: Лизинговый платеж к уплате | E142: в т.ч. НДС | F142: Лизинговый платеж к начислению | G142: в т.ч. НДС | H142: в т.ч. выкупная стоимость | I142: НДС к возмещению | J142: Экономия доходов / прибыли | K142: =IF($J141=0,MIN(K$18:K141),$F$9-$C141) -> 
A143: =$H$141 -> 4000000 | B143: =B19 -> 1 | C143: 1 | D143: =IF(C143="","",IF($F$8=$A$9,A143*$J$141/12+$H$141/$F$6,-PMT($J$141/12,$F$6,$H$141,0,0))) -> 187777.7778 | E143: =IF(C143="","",D143/(1+$J$6)*$J$6) -> 28644.0678 | F143: =IF(C143="","",D143+($F$4*$F$7)/$F$6) -> 215555.5556 | G143: =IF(C143="","",F143/(1+$J$6)*$J$6) -> 32881.35593 | H143: =IF(C143="","",F143/$F$263*($F$4/(1+$J$6))) -> 142306.5694 | I143: =IF(C143="","",IF($H$4=$A$4,G143,0)) -> 32881.35593 | J143: =IF(C143="","",(F143-H143)*IF($H$4=$A$4,$J$5,$J$7)+IF($C143=$F$6,SUM(H$143:H143)*IF($H$4=$A$4,$J$5,$J$7),0)) -> 14649.79723 | K143: =IF(#REF!=0,MIN(K$18:K142),$F$9-$C142) -> 
A144: =IF(A143-$H$141/$F$6<0,0,A143-$H$141/$F$6) -> 3888888.889 | B144: =B20 -> 1 | C144: =IFERROR(IF(C143+1<=$F$6,C143+1,""),"") -> 2 | D144: =IF(C144="","",IF($F$8=$A$9,A144*$J$141/12+$H$141/$F$6,-PMT($J$141/12,$F$6,$H$141,0,0))) -> 185648.1481 | E144: =IF(C144="","",D144/(1+$J$6)*$J$6) -> 28319.20904 | F144: =IF(C144="","",D144+($F$4*$F$7)/$F$6) -> 213425.9259 | G144: =IF(C144="","",F144/(1+$J$6)*$J$6) -> 32556.49718 | H144: =IF(C144="","",F144/$F$263*($F$4/(1+$J$6))) -> 140900.6196 | I144: 32556.49718 | J144: =IF(C144="","",(F144-H144)*IF($H$4=$A$4,$J$5,$J$7)+IF($C144=$F$6,SUM(H$143:H144)*IF($H$4=$A$4,$J$5,$J$7),0)) -> 14505.06126 | K144: =IF(#REF!=0,MIN(K$18:K143),$F$9-$C143) -> 
A145: =IF(A144-$H$141/$F$6<0,0,A144-$H$141/$F$6) -> 3777777.778 | B145: =B21 -> 1 | C145: =IFERROR(IF(C144+1<=$F$6,C144+1,""),"") -> 3 | D145: 183518.5185 | E145: 27994.35028 | F145: 211296.2963 | G145: 32231.63842 | H145: 139494.6699 | I145: 32231.63842 | J145: =IF(C145="","",(F145-H145)*IF($H$4=$A$4,$J$5,$J$7)+IF($C145=$F$6,SUM(H$143:H145)*IF($H$4=$A$4,$J$5,$J$7),0)) -> 14360.32529 | K145: =IF(#REF!=0,MIN(K$18:K144),$F$9-$C144) -> 
A146: 3666666.667 | B146: =B22 -> 1 | C146: 4 | D146: 181388.8889 | E146: 27669.49153 | F146: 209166.6667 | G146: 31906.77966 | H146: 138088.7201 | I146: 31906.77966 | J146: =IF(C146="","",(F146-H146)*IF($H$4=$A$4,$J$5,$J$7)+IF($C146=$F$6,SUM(H$143:H146)*IF($H$4=$A$4,$J$5,$J$7),0)) -> 14215.58932 | K146: =IF(#REF!=0,MIN(K$18:K145),$F$9-$C145) -> 
A147: 3555555.556 | B147: =B23 -> 1 | C147: 5 | D147: 179259.2593 | E147: 27344.63277 | F147: 207037.037 | G147: 31581.9209 | H147: 136682.7703 | I147: 31581.9209 | J147: =IF(C147="","",(F147-H147)*IF($H$4=$A$4,$J$5,$J$7)+IF($C147=$F$6,SUM(H$143:H147)*IF($H$4=$A$4,$J$5,$J$7),0)) -> 14070.85335 | K147: =IF(#REF!=0,MIN(K$18:K146),$F$9-$C146) -> 
A148: 3444444.444 | B148: =B24 -> 1 | C148: 6 | D148: 177129.6296 | E148: 27019.77401 | F148: 204907.4074 | G148: 31257.06215 | H148: 135276.8205 | I148: 31257.06215 | J148: =IF(C148="","",(F148-H148)*IF($H$4=$A$4,$J$5,$J$7)+IF($C148=$F$6,SUM(H$143:H148)*IF($H$4=$A$4,$J$5,$J$7),0)) -> 13926.11738 | K148: =IF(#REF!=0,MIN(K$18:K147),$F$9-$C147) -> 
A149: 3333333.333 | B149: =B25 -> 1 | C149: 7 | D149: 175000 | E149: 26694.91525 | F149: 202777.7778 | G149: 30932.20339 | H149: 133870.8707 | I149: 30932.20339 | J149: =IF(C149="","",(F149-H149)*IF($H$4=$A$4,$J$5,$J$7)+IF($C149=$F$6,SUM(H$143:H149)*IF($H$4=$A$4,$J$5,$J$7),0)) -> 13781.38141 | K149: =IF(#REF!=0,MIN(K$18:K148),$F$9-$C148) -> 
A150: 3222222.222 | B150: =B26 -> 1 | C150: 8 | D150: 172870.3704 | E150: 26370.0565 | F150: 200648.1481 | G150: 30607.34463 | H150: 132464.9209 | I150: 30607.34463 | J150: =IF(C150="","",(F150-H150)*IF($H$4=$A$4,$J$5,$J$7)+IF($C150=$F$6,SUM(H$143:H150)*IF($H$4=$A$4,$J$5,$J$7),0)) -> 13636.64544 | K150: =IF(#REF!=0,MIN(K$18:K149),$F$9-$C149) -> 
A151: 3111111.111 | B151: =B27 -> 1 | C151: 9 | D151: 170740.7407 | E151: 26045.19774 | F151: 198518.5185 | G151: 30282.48588 | H151: 131058.9712 | I151: 30282.48588 | J151: =IF(C151="","",(F151-H151)*IF($H$4=$A$4,$J$5,$J$7)+IF($C151=$F$6,SUM(H$143:H151)*IF($H$4=$A$4,$J$5,$J$7),0)) -> 13491.90947 | K151: =IF(#REF!=0,MIN(K$18:K150),$F$9-$C150) -> 
A152: 3000000 | B152: =B28 -> 1 | C152: 10 | D152: 168611.1111 | E152: 25720.33898 | F152: 196388.8889 | G152: 29957.62712 | H152: 129653.0214 | I152: 29957.62712 | J152: =IF(C152="","",(F152-H152)*IF($H$4=$A$4,$J$5,$J$7)+IF($C152=$F$6,SUM(H$143:H152)*IF($H$4=$A$4,$J$5,$J$7),0)) -> 13347.1735 | K152: =IF(#REF!=0,MIN(K$18:K151),$F$9-$C151) -> 
A153: 2888888.889 | B153: =B29 -> 1 | C153: 11 | D153: 166481.4815 | E153: 25395.48023 | F153: 194259.2593 | G153: 29632.76836 | H153: 128247.0716 | I153: 29632.76836 | J153: =IF(C153="","",(F153-H153)*IF($H$4=$A$4,$J$5,$J$7)+IF($C153=$F$6,SUM(H$143:H153)*IF($H$4=$A$4,$J$5,$J$7),0)) -> 13202.43753 | K153: =IF(#REF!=0,MIN(K$18:K152),$F$9-$C152) -> 
A154: 2777777.778 | B154: =B30 -> 1 | C154: 12 | D154: 164351.8519 | E154: 25070.62147 | F154: 192129.6296 | G154: 29307.9096 | H154: 126841.1218 | I154: 29307.9096 | J154: =IF(C154="","",(F154-H154)*IF($H$4=$A$4,$J$5,$J$7)+IF($C154=$F$6,SUM(H$143:H154)*IF($H$4=$A$4,$J$5,$J$7),0)) -> 13057.70156 | K154: =IF(#REF!=0,MIN(K$18:K153),$F$9-$C153) -> 
A155: 2666666.667 | B155: =B31 -> 2 | C155: 13 | D155: 162222.2222 | E155: 24745.76271 | F155: 190000 | G155: 28983.05085 | H155: 125435.172 | I155: 28983.05085 | J155: =IF(C155="","",(F155-H155)*IF($H$4=$A$4,$J$5,$J$7)+IF($C155=$F$6,SUM(H$143:H155)*IF($H$4=$A$4,$J$5,$J$7),0)) -> 12912.9656 | K155: =IF(#REF!=0,MIN(K$18:K154),$F$9-$C154) -> 
A156: 2555555.556 | B156: =B32 -> 2 | C156: 14 | D156: 160092.5926 | E156: 24420.90395 | F156: 187870.3704 | G156: 28658.19209 | H156: 124029.2222 | I156: 28658.19209 | J156: =IF(C156="","",(F156-H156)*IF($H$4=$A$4,$J$5,$J$7)+IF($C156=$F$6,SUM(H$143:H156)*IF($H$4=$A$4,$J$5,$J$7),0)) -> 12768.22963 | K156: =IF(#REF!=0,MIN(K$18:K155),$F$9-$C155) -> 
A157: 2444444.444 | B157: =B33 -> 2 | C157: 15 | D157: 157962.963 | E157: 24096.0452 | F157: 185740.7407 | G157: 28333.33333 | H157: 122623.2725 | I157: 28333.33333 | J157: =IF(C157="","",(F157-H157)*IF($H$4=$A$4,$J$5,$J$7)+IF($C157=$F$6,SUM(H$143:H157)*IF($H$4=$A$4,$J$5,$J$7),0)) -> 12623.49366 | K157: =IF(#REF!=0,MIN(K$18:K156),$F$9-$C156) -> 
A158: 2333333.333 | B158: =B34 -> 2 | C158: 16 | D158: 155833.3333 | E158: 23771.18644 | F158: 183611.1111 | G158: 28008.47458 | H158: 121217.3227 | I158: 28008.47458 | J158: =IF(C158="","",(F158-H158)*IF($H$4=$A$4,$J$5,$J$7)+IF($C158=$F$6,SUM(H$143:H158)*IF($H$4=$A$4,$J$5,$J$7),0)) -> 12478.75769 | K158: =IF(#REF!=0,MIN(K$18:K157),$F$9-$C157) -> 
A159: 2222222.222 | B159: =B35 -> 2 | C159: 17 | D159: 153703.7037 | E159: 23446.32768 | F159: 181481.4815 | G159: 27683.61582 | H159: 119811.3729 | I159: 27683.61582 | J159: =IF(C159="","",(F159-H159)*IF($H$4=$A$4,$J$5,$J$7)+IF($C159=$F$6,SUM(H$143:H159)*IF($H$4=$A$4,$J$5,$J$7),0)) -> 12334.02172 | K159: =IF(#REF!=0,MIN(K$18:K158),$F$9-$C158) -> 
A160: 2111111.111 | B160: =B36 -> 2 | C160: 18 | D160: 151574.0741 | E160: 23121.46893 | F160: 179351.8519 | G160: 27358.75706 | H160: 118405.4231 | I160: 27358.75706 | J160: =IF(C160="","",(F160-H160)*IF($H$4=$A$4,$J$5,$J$7)+IF($C160=$F$6,SUM(H$143:H160)*IF($H$4=$A$4,$J$5,$J$7),0)) -> 12189.28575 | K160: =IF(#REF!=0,MIN(K$18:K159),$F$9-$C159) -> 
A161: 2000000 | B161: =B37 -> 2 | C161: 19 | D161: 149444.4444 | E161: 22796.61017 | F161: 177222.2222 | G161: 27033.89831 | H161: 116999.4733 | I161: 27033.89831 | J161: =IF(C161="","",(F161-H161)*IF($H$4=$A$4,$J$5,$J$7)+IF($C161=$F$6,SUM(H$143:H161)*IF($H$4=$A$4,$J$5,$J$7),0)) -> 12044.54978 | K161: =IF(#REF!=0,MIN(K$18:K160),$F$9-$C160) -> 
A162: 1888888.889 | B162: =B38 -> 2 | C162: 20 | D162: 147314.8148 | E162: 22471.75141 | F162: 175092.5926 | G162: 26709.03955 | H162: 115593.5235 | I162: 26709.03955 | J162: =IF(C162="","",(F162-H162)*IF($H$4=$A$4,$J$5,$J$7)+IF($C162=$F$6,SUM(H$143:H162)*IF($H$4=$A$4,$J$5,$J$7),0)) -> 11899.81381 | K162: =IF(#REF!=0,MIN(K$18:K161),$F$9-$C161) -> 
A163: 1777777.778 | B163: =B39 -> 2 | C163: 21 | D163: 145185.1852 | E163: 22146.89266 | F163: 172962.963 | G163: 26384.18079 | H163: 114187.5738 | I163: 26384.18079 | J163: =IF(C163="","",(F163-H163)*IF($H$4=$A$4,$J$5,$J$7)+IF($C163=$F$6,SUM(H$143:H163)*IF($H$4=$A$4,$J$5,$J$7),0)) -> 11755.07784 | K163: =IF(#REF!=0,MIN(K$18:K162),$F$9-$C162) -> 
A164: 1666666.667 | B164: =B40 -> 2 | C164: 22 | D164: 143055.5556 | E164: 21822.0339 | F164: 170833.3333 | G164: 26059.32203 | H164: 112781.624 | I164: 26059.32203 | J164: =IF(C164="","",(F164-H164)*IF($H$4=$A$4,$J$5,$J$7)+IF($C164=$F$6,SUM(H$143:H164)*IF($H$4=$A$4,$J$5,$J$7),0)) -> 11610.34187 | K164: =IF(#REF!=0,MIN(K$18:K163),$F$9-$C163) -> 
A165: 1555555.556 | B165: =B41 -> 2 | C165: 23 | D165: 140925.9259 | E165: 21497.17514 | F165: 168703.7037 | G165: 25734.46328 | H165: 111375.6742 | I165: 25734.46328 | J165: =IF(C165="","",(F165-H165)*IF($H$4=$A$4,$J$5,$J$7)+IF($C165=$F$6,SUM(H$143:H165)*IF($H$4=$A$4,$J$5,$J$7),0)) -> 11465.6059 | K165: =IF(#REF!=0,MIN(K$18:K164),$F$9-$C164) -> 
A166: 1444444.444 | B166: =B42 -> 2 | C166: 24 | D166: 138796.2963 | E166: 21172.31638 | F166: 166574.0741 | G166: 25409.60452 | H166: 109969.7244 | I166: 25409.60452 | J166: =IF(C166="","",(F166-H166)*IF($H$4=$A$4,$J$5,$J$7)+IF($C166=$F$6,SUM(H$143:H166)*IF($H$4=$A$4,$J$5,$J$7),0)) -> 11320.86993 | K166: =IF(#REF!=0,MIN(K$18:K165),$F$9-$C165) -> 
A167: 1333333.333 | B167: =B43 -> 3 | C167: 25 | D167: 136666.6667 | E167: 20847.45763 | F167: 164444.4444 | G167: 25084.74576 | H167: 108563.7746 | I167: 25084.74576 | J167: =IF(C167="","",(F167-H167)*IF($H$4=$A$4,$J$5,$J$7)+IF($C167=$F$6,SUM(H$143:H167)*IF($H$4=$A$4,$J$5,$J$7),0)) -> 11176.13397 | K167: =IF(#REF!=0,MIN(K$18:K166),$F$9-$C166) -> 
A168: 1222222.222 | B168: =B44 -> 3 | C168: 26 | D168: 134537.037 | E168: 20522.59887 | F168: 162314.8148 | G168: 24759.88701 | H168: 107157.8248 | I168: 24759.88701 | J168: =IF(C168="","",(F168-H168)*IF($H$4=$A$4,$J$5,$J$7)+IF($C168=$F$6,SUM(H$143:H168)*IF($H$4=$A$4,$J$5,$J$7),0)) -> 11031.398 | K168: =IF(#REF!=0,MIN(K$18:K167),$F$9-$C167) -> 
A169: 1111111.111 | B169: =B45 -> 3 | C169: 27 | D169: 132407.4074 | E169: 20197.74011 | F169: 160185.1852 | G169: 24435.02825 | H169: 105751.875 | I169: 24435.02825 | J169: =IF(C169="","",(F169-H169)*IF($H$4=$A$4,$J$5,$J$7)+IF($C169=$F$6,SUM(H$143:H169)*IF($H$4=$A$4,$J$5,$J$7),0)) -> 10886.66203 | K169: =IF(#REF!=0,MIN(K$18:K168),$F$9-$C168) -> 
A170: 1000000 | B170: =B46 -> 3 | C170: 28 | D170: 130277.7778 | E170: 19872.88136 | F170: 158055.5556 | G170: 24110.16949 | H170: 104345.9253 | I170: 24110.16949 | J170: =IF(C170="","",(F170-H170)*IF($H$4=$A$4,$J$5,$J$7)+IF($C170=$F$6,SUM(H$143:H170)*IF($H$4=$A$4,$J$5,$J$7),0)) -> 10741.92606 | K170: =IF(#REF!=0,MIN(K$18:K169),$F$9-$C169) -> 
A171: 888888.8889 | B171: =B47 -> 3 | C171: 29 | D171: 128148.1481 | E171: 19548.0226 | F171: 155925.9259 | G171: 23785.31073 | H171: 102939.9755 | I171: 23785.31073 | J171: =IF(C171="","",(F171-H171)*IF($H$4=$A$4,$J$5,$J$7)+IF($C171=$F$6,SUM(H$143:H171)*IF($H$4=$A$4,$J$5,$J$7),0)) -> 10597.19009 | K171: =IF(#REF!=0,MIN(K$18:K170),$F$9-$C170) -> 
A172: 777777.7778 | B172: =B48 -> 3 | C172: 30 | D172: 126018.5185 | E172: 19223.16384 | F172: 153796.2963 | G172: 23460.45198 | H172: 101534.0257 | I172: 23460.45198 | J172: =IF(C172="","",(F172-H172)*IF($H$4=$A$4,$J$5,$J$7)+IF($C172=$F$6,SUM(H$143:H172)*IF($H$4=$A$4,$J$5,$J$7),0)) -> 10452.45412 | K172: =IF(#REF!=0,MIN(K$18:K171),$F$9-$C171) -> 
A173: 666666.6667 | B173: =B49 -> 3 | C173: 31 | D173: 123888.8889 | E173: 18898.30508 | F173: 151666.6667 | G173: 23135.59322 | H173: 100128.0759 | I173: 23135.59322 | J173: =IF(C173="","",(F173-H173)*IF($H$4=$A$4,$J$5,$J$7)+IF($C173=$F$6,SUM(H$143:H173)*IF($H$4=$A$4,$J$5,$J$7),0)) -> 10307.71815 | K173: =IF(#REF!=0,MIN(K$18:K172),$F$9-$C172) -> 
A174: 555555.5556 | B174: =B50 -> 3 | C174: 32 | D174: 121759.2593 | E174: 18573.44633 | F174: 149537.037 | G174: 22810.73446 | H174: 98722.12613 | I174: 22810.73446 | J174: =IF(C174="","",(F174-H174)*IF($H$4=$A$4,$J$5,$J$7)+IF($C174=$F$6,SUM(H$143:H174)*IF($H$4=$A$4,$J$5,$J$7),0)) -> 10162.98218 | K174: =IF(#REF!=0,MIN(K$18:K173),$F$9-$C173) -> 
A175: 444444.4444 | B175: =B51 -> 3 | C175: 33 | D175: 119629.6296 | E175: 18248.58757 | F175: 147407.4074 | G175: 22485.87571 | H175: 97316.17634 | I175: =IF(C175="","",IF($H$4=$A$4,G175,0)) -> 22485.87571 | J175: =IF(C175="","",(F175-H175)*IF($H$4=$A$4,$J$5,$J$7)+IF($C175=$F$6,SUM(H$143:H175)*IF($H$4=$A$4,$J$5,$J$7),0)) -> 10018.24621 | K175: =IF(#REF!=0,MIN(K$18:K174),$F$9-$C174) -> 
A176: 333333.3333 | B176: =B52 -> 3 | C176: 34 | D176: 117500 | E176: 17923.72881 | F176: 145277.7778 | G176: 22161.01695 | H176: 95910.22656 | I176: 22161.01695 | J176: =IF(C176="","",(F176-H176)*IF($H$4=$A$4,$J$5,$J$7)+IF($C176=$F$6,SUM(H$143:H176)*IF($H$4=$A$4,$J$5,$J$7),0)) -> 9873.510243 | K176: =IF(#REF!=0,MIN(K$18:K175),$F$9-$C175) -> 
A177: 222222.2222 | B177: =B53 -> 3 | C177: 35 | D177: 115370.3704 | E177: 17598.87006 | F177: 143148.1481 | G177: 21836.15819 | H177: 94504.27678 | I177: 21836.15819 | J177: =IF(C177="","",(F177-H177)*IF($H$4=$A$4,$J$5,$J$7)+IF($C177=$F$6,SUM(H$143:H177)*IF($H$4=$A$4,$J$5,$J$7),0)) -> 9728.774274 | K177: =IF(#REF!=0,MIN(K$18:K176),$F$9-$C176) -> 
A178: 111111.1111 | B178: =B54 -> 3 | C178: 36 | D178: 113240.7407 | E178: 17274.0113 | F178: 141018.5185 | G178: 21511.29944 | H178: 93098.32699 | I178: 21511.29944 | J178: =IF(C178="","",(F178-H178)*IF($H$4=$A$4,$J$5,$J$7)+IF($C178=$F$6,SUM(H$143:H178)*IF($H$4=$A$4,$J$5,$J$7),0)) -> 857041.6654 | K178: =IF(#REF!=0,MIN(K$18:K177),$F$9-$C177) -> 
A179: 2.590240911e-09 | B179: =B55 -> 4 | J179: =IF(C179="","",(F179-H179)*IF($H$4=$A$4,$J$5,$J$7)+IF($C179=$F$6,SUM(H$143:H179)*IF($H$4=$A$4,$J$5,$J$7),0)) ->  | K179: =IF(#REF!=0,MIN(K$18:K178),$F$9-$C178) -> 
A180: 0 | B180: =B56 -> 4 | J180: =IF(C180="","",(F180-H180)*IF($H$4=$A$4,$J$5,$J$7)+IF($C180=$F$6,SUM(H$143:H180)*IF($H$4=$A$4,$J$5,$J$7),0)) ->  | K180: =IF(#REF!=0,MIN(K$18:K179),$F$9-$C179) -> 
A181: 0 | B181: =B57 -> 4 | J181: =IF(C181="","",(F181-H181)*IF($H$4=$A$4,$J$5,$J$7)+IF($C181=$F$6,SUM(H$143:H181)*IF($H$4=$A$4,$J$5,$J$7),0)) ->  | K181: =IF(#REF!=0,MIN(K$18:K180),$F$9-$C180) -> 
A182: 0 | B182: =B58 -> 4 | J182: =IF(C182="","",(F182-H182)*IF($H$4=$A$4,$J$5,$J$7)+IF($C182=$F$6,SUM(H$143:H182)*IF($H$4=$A$4,$J$5,$J$7),0)) ->  | K182: =IF(#REF!=0,MIN(K$18:K181),$F$9-$C181) -> 
A183: 0 | B183: =B59 -> 4 | J183: =IF(C183="","",(F183-H183)*IF($H$4=$A$4,$J$5,$J$7)+IF($C183=$F$6,SUM(H$143:H183)*IF($H$4=$A$4,$J$5,$J$7),0)) ->  | K183: =IF(#REF!=0,MIN(K$18:K182),$F$9-$C182) -> 
A184: 0 | B184: =B60 -> 4 | J184: =IF(C184="","",(F184-H184)*IF($H$4=$A$4,$J$5,$J$7)+IF($C184=$F$6,SUM(H$143:H184)*IF($H$4=$A$4,$J$5,$J$7),0)) ->  | K184: =IF(#REF!=0,MIN(K$18:K183),$F$9-$C183) -> 
A185: 0 | B185: =B61 -> 4 | J185: =IF(C185="","",(F185-H185)*IF($H$4=$A$4,$J$5,$J$7)+IF($C185=$F$6,SUM(H$143:H185)*IF($H$4=$A$4,$J$5,$J$7),0)) ->  | K185: =IF(#REF!=0,MIN(K$18:K184),$F$9-$C184) -> 
A186: 0 | B186: =B62 -> 4 | J186: =IF(C186="","",(F186-H186)*IF($H$4=$A$4,$J$5,$J$7)+IF($C186=$F$6,SUM(H$143:H186)*IF($H$4=$A$4,$J$5,$J$7),0)) ->  | K186: =IF(#REF!=0,MIN(K$18:K185),$F$9-$C185) -> 
A187: 0 | B187: =B63 -> 4 | J187: =IF(C187="","",(F187-H187)*IF($H$4=$A$4,$J$5,$J$7)+IF($C187=$F$6,SUM(H$143:H187)*IF($H$4=$A$4,$J$5,$J$7),0)) ->  | K187: =IF(#REF!=0,MIN(K$18:K186),$F$9-$C186) -> 
A188: 0 | B188: =B64 -> 4 | J188: =IF(C188="","",(F188-H188)*IF($H$4=$A$4,$J$5,$J$7)+IF($C188=$F$6,SUM(H$143:H188)*IF($H$4=$A$4,$J$5,$J$7),0)) ->  | K188: =IF(#REF!=0,MIN(K$18:K187),$F$9-$C187) -> 
A189: 0 | B189: =B65 -> 4 | J189: =IF(C189="","",(F189-H189)*IF($H$4=$A$4,$J$5,$J$7)+IF($C189=$F$6,SUM(H$143:H189)*IF($H$4=$A$4,$J$5,$J$7),0)) ->  | K189: =IF(#REF!=0,MIN(K$18:K188),$F$9-$C188) -> 
A190: 0 | B190: =B66 -> 4 | J190: =IF(C190="","",(F190-H190)*IF($H$4=$A$4,$J$5,$J$7)+IF($C190=$F$6,SUM(H$143:H190)*IF($H$4=$A$4,$J$5,$J$7),0)) ->  | K190: =IF(#REF!=0,MIN(K$18:K189),$F$9-$C189) -> 
A191: 0 | B191: =B67 -> 5 | J191: =IF(C191="","",(F191-H191)*IF($H$4=$A$4,$J$5,$J$7)+IF($C191=$F$6,SUM(H$143:H191)*IF($H$4=$A$4,$J$5,$J$7),0)) ->  | K191: =IF(#REF!=0,MIN(K$18:K190),$F$9-$C190) -> 
A192: 0 | B192: =B68 -> 5 | J192: =IF(C192="","",(F192-H192)*IF($H$4=$A$4,$J$5,$J$7)+IF($C192=$F$6,SUM(H$143:H192)*IF($H$4=$A$4,$J$5,$J$7),0)) ->  | K192: =IF(#REF!=0,MIN(K$18:K191),$F$9-$C191) -> 
A193: 0 | B193: =B69 -> 5 | J193: =IF(C193="","",(F193-H193)*IF($H$4=$A$4,$J$5,$J$7)+IF($C193=$F$6,SUM(H$143:H193)*IF($H$4=$A$4,$J$5,$J$7),0)) ->  | K193: =IF(#REF!=0,MIN(K$18:K192),$F$9-$C192) -> 
A194: 0 | B194: =B70 -> 5 | J194: =IF(C194="","",(F194-H194)*IF($H$4=$A$4,$J$5,$J$7)+IF($C194=$F$6,SUM(H$143:H194)*IF($H$4=$A$4,$J$5,$J$7),0)) ->  | K194: =IF(#REF!=0,MIN(K$18:K193),$F$9-$C193) -> 
A195: 0 | B195: =B71 -> 5 | J195: =IF(C195="","",(F195-H195)*IF($H$4=$A$4,$J$5,$J$7)+IF($C195=$F$6,SUM(H$143:H195)*IF($H$4=$A$4,$J$5,$J$7),0)) ->  | K195: =IF(#REF!=0,MIN(K$18:K194),$F$9-$C194) -> 
A196: 0 | B196: =B72 -> 5 | J196: =IF(C196="","",(F196-H196)*IF($H$4=$A$4,$J$5,$J$7)+IF($C196=$F$6,SUM(H$143:H196)*IF($H$4=$A$4,$J$5,$J$7),0)) ->  | K196: =IF(#REF!=0,MIN(K$18:K195),$F$9-$C195) -> 
A197: 0 | B197: =B73 -> 5 | J197: =IF(C197="","",(F197-H197)*IF($H$4=$A$4,$J$5,$J$7)+IF($C197=$F$6,SUM(H$143:H197)*IF($H$4=$A$4,$J$5,$J$7),0)) ->  | K197: =IF(#REF!=0,MIN(K$18:K196),$F$9-$C196) -> 
A198: 0 | B198: =B74 -> 5 | J198: =IF(C198="","",(F198-H198)*IF($H$4=$A$4,$J$5,$J$7)+IF($C198=$F$6,SUM(H$143:H198)*IF($H$4=$A$4,$J$5,$J$7),0)) ->  | K198: =IF(#REF!=0,MIN(K$18:K197),$F$9-$C197) -> 
A199: 0 | B199: =B75 -> 5 | J199: =IF(C199="","",(F199-H199)*IF($H$4=$A$4,$J$5,$J$7)+IF($C199=$F$6,SUM(H$143:H199)*IF($H$4=$A$4,$J$5,$J$7),0)) ->  | K199: =IF(#REF!=0,MIN(K$18:K198),$F$9-$C198) -> 
A200: 0 | B200: =B76 -> 5 | J200: =IF(C200="","",(F200-H200)*IF($H$4=$A$4,$J$5,$J$7)+IF($C200=$F$6,SUM(H$143:H200)*IF($H$4=$A$4,$J$5,$J$7),0)) ->  | K200: =IF(#REF!=0,MIN(K$18:K199),$F$9-$C199) -> 
... 63 more rows
